Workbook

Sheet Intro
C2: CALCULS FINANCIERS
C4: APPLICATIONS SOUS EXCEL
C6: 2018-10-11 | D6: CE IDF
C8: NOM | D8: Gestion des noms
C9: TABLE | D9: Références croisées
C10: TRANSPOSE | D10: Calcul Matriciel
C11: Table Simple Entrée | D11: Table à Simple entrée
C12: Table Double Entrée | D12: Table à Double entrée
C14: DATES | D14: Gestion des dates
C15: ACTUARIAT | D15: Calcul Actuariel
C16: PRETS | D16: Prêts bancaire à échéance constante
C17: FR-UK | D17: Dictionnaire
C18: Lexique | D18: Dictionnaire
C19: RACCOURCIS | D19: Raccourcis Clavier
C21: P DUCHEMIN
C22: philippe.duchemin@finkeys.com

Sheet Nom
A1: GESTION DES NOMS
A3: 1 | B3: Donner le nom de la couleur aux plages suivantes | K3: 2 | L3: Saisir le chiffre 111 à l'intersection des 2 zones
B5: jaune | L5: Obtenir le résultat avec la formule: = orange rouge
L7: F14 | M7: 111
B8: bleu
M9: =orange rouge -> 111
B10: orange
B11: et | K11: 3 | L11: Saisie la zone suivante à l'intersection des 2 zones
B12: rouge
L13: F21:G22 | M13: 33 | N13: 44
F14: 111 | M14: 55 | N14: 66
L16: Obtenir le résultat avec la formule: = violet vert
L17: en sélectionnant la zone en jaune, saisir la formule et faire Ctrl+Shift Enter
B18: violet
B19: et | M19: =violet vert -> 33 | N19: 44
B20: vert | M20: 55 | N20: 66
E21: 33 | F21: 44
E22: 55 | F22: 66

Sheet Table
A1: TABLE DE MULTIPLICATION et d'ADDITION
B3: Le but de l'exercice est de remplir tout le tableau en saisissant la cellule dans le coin supérieur gauche et de la copier sur tout le reste du tableau à l'aide de la "poignée"
B5: Saisir la formule suivante dans la cellule B14: "B$13*$A14"
B6: Copier en utilisant la "poignée" la cellule B14 jusqu'à la fin de la ligne, puis copier la ligne vers le bas, vers la dernière ligne
A8: 1 | B8: Format conditionnel: mettre sur fond jaune les nombres compris entre 30 et 60
A9: 2 | B9: Format conditionnel: mettre en rouge les nombres impairs
A10: 3 | B10: Format conditionnel: mettre sur fond rouge, le chiffre maximum
B12: Addition | M12: Multiplication
B13: 1 | C13: 2 | D13: 3 | E13: 4 | F13: 5 | G13: 6 | H13: 7 | I13: 8 | J13: 9 | M13: =B13 -> 1 | N13: 2 | O13: 3 | P13: 4 | Q13: 5 | R13: 6 | S13: 7 | T13: 8 | U13: 9
A14: 1 | B14: =$A14+B$13 -> 2 | C14: =$A14+C$13 -> 3 | D14: 4 | E14: 5 | F14: 6 | G14: 7 | H14: 8 | I14: 9 | J14: 10 | L14: 1 | M14: =$A14*M$13 -> 1 | N14: 2 | O14: 3 | P14: 4 | Q14: 5 | R14: 6 | S14: 7 | T14: 8 | U14: 9
A15: 2 | B15: =$A15+B$13 -> 3 | C15: 4 | D15: 5 | E15: 6 | F15: 7 | G15: 8 | H15: 9 | I15: 10 | J15: 11 | L15: 2 | M15: 2 | N15: 4 | O15: 6 | P15: 8 | Q15: 10 | R15: 12 | S15: 14 | T15: 16 | U15: 18
A16: 3 | B16: 4 | C16: 5 | D16: 6 | E16: 7 | F16: 8 | G16: 9 | H16: 10 | I16: 11 | J16: 12 | L16: 3 | M16: 3 | N16: 6 | O16: 9 | P16: 12 | Q16: 15 | R16: 18 | S16: 21 | T16: 24 | U16: 27
A17: 4 | B17: 5 | C17: 6 | D17: 7 | E17: 8 | F17: 9 | G17: 10 | H17: 11 | I17: 12 | J17: 13 | L17: 4 | M17: 4 | N17: 8 | O17: 12 | P17: 16 | Q17: 20 | R17: 24 | S17: 28 | T17: 32 | U17: 36
A18: 5 | B18: 6 | C18: 7 | D18: 8 | E18: 9 | F18: 10 | G18: 11 | H18: 12 | I18: 13 | J18: 14 | L18: 5 | M18: 5 | N18: 10 | O18: 15 | P18: 20 | Q18: 25 | R18: 30 | S18: 35 | T18: 40 | U18: 45
A19: 6 | B19: 7 | C19: 8 | D19: 9 | E19: 10 | F19: 11 | G19: 12 | H19: 13 | I19: 14 | J19: 15 | L19: 6 | M19: 6 | N19: 12 | O19: 18 | P19: 24 | Q19: 30 | R19: 36 | S19: 42 | T19: 48 | U19: 54
A20: 7 | B20: 8 | C20: 9 | D20: 10 | E20: 11 | F20: 12 | G20: 13 | H20: 14 | I20: 15 | J20: 16 | L20: 7 | M20: 7 | N20: 14 | O20: 21 | P20: 28 | Q20: 35 | R20: 42 | S20: 49 | T20: 56 | U20: 63
A21: 8 | B21: 9 | C21: 10 | D21: 11 | E21: 12 | F21: 13 | G21: 14 | H21: 15 | I21: 16 | J21: 17 | L21: 8 | M21: 8 | N21: 16 | O21: 24 | P21: 32 | Q21: 40 | R21: 48 | S21: 56 | T21: 64 | U21: 72
A22: 9 | B22: 10 | C22: 11 | D22: 12 | E22: 13 | F22: 14 | G22: 15 | H22: 16 | I22: 17 | J22: 18 | L22: 9 | M22: 9 | N22: 18 | O22: 27 | P22: 36 | Q22: 45 | R22: 54 | S22: 63 | T22: 72 | U22: 81
A23: 10 | B23: 11 | C23: 12 | D23: 13 | E23: 14 | F23: 15 | G23: 16 | H23: 17 | I23: 18 | J23: 19 | L23: 10 | M23: 10 | N23: 20 | O23: 30 | P23: 40 | Q23: 50 | R23: 60 | S23: 70 | T23: 80 | U23: 90
A24: 11 | B24: 12 | C24: 13 | D24: 14 | E24: 15 | F24: 16 | G24: 17 | H24: 18 | I24: 19 | J24: 20 | L24: 11 | M24: 11 | N24: 22 | O24: 33 | P24: 44 | Q24: 55 | R24: 66 | S24: 77 | T24: 88 | U24: 99
A25: 12 | B25: 13 | C25: 14 | D25: 15 | E25: 16 | F25: 17 | G25: 18 | H25: 19 | I25: 20 | J25: 21 | L25: 12 | M25: 12 | N25: 24 | O25: 36 | P25: 48 | Q25: 60 | R25: 72 | S25: 84 | T25: 96 | U25: 108
A26: 13 | B26: 14 | C26: 15 | D26: 16 | E26: 17 | F26: 18 | G26: 19 | H26: 20 | I26: 21 | J26: 22 | L26: 13 | M26: 13 | N26: 26 | O26: 39 | P26: 52 | Q26: 65 | R26: 78 | S26: 91 | T26: 104 | U26: 117
A27: 14 | B27: 15 | C27: 16 | D27: 17 | E27: 18 | F27: 19 | G27: 20 | H27: 21 | I27: 22 | J27: 23 | L27: 14 | M27: 14 | N27: 28 | O27: 42 | P27: 56 | Q27: 70 | R27: 84 | S27: 98 | T27: 112 | U27: 126
A28: 15 | B28: 16 | C28: 17 | D28: 18 | E28: 19 | F28: 20 | G28: 21 | H28: 22 | I28: 23 | J28: 24 | L28: 15 | M28: 15 | N28: 30 | O28: 45 | P28: 60 | Q28: 75 | R28: 90 | S28: 105 | T28: 120 | U28: 135
A29: 16 | B29: 17 | C29: 18 | D29: 19 | E29: 20 | F29: 21 | G29: 22 | H29: 23 | I29: 24 | J29: 25 | L29: 16 | M29: 16 | N29: 32 | O29: 48 | P29: 64 | Q29: 80 | R29: 96 | S29: 112 | T29: 128 | U29: 144
A30: 17 | B30: 18 | C30: 19 | D30: 20 | E30: 21 | F30: 22 | G30: 23 | H30: 24 | I30: 25 | J30: 26 | L30: 17 | M30: =$A30*M$13 -> 17 | N30: 34 | O30: 51 | P30: 68 | Q30: 85 | R30: 102 | S30: 119 | T30: 136 | U30: 153
A31: 18 | B31: 19 | C31: 20 | D31: 21 | E31: 22 | F31: 23 | G31: 24 | H31: 25 | I31: 26 | J31: 27 | L31: 18 | M31: 18 | N31: 36 | O31: 54 | P31: 72 | Q31: 90 | R31: 108 | S31: 126 | T31: 144 | U31: 162
A32: 19 | B32: 20 | C32: 21 | D32: 22 | E32: 23 | F32: 24 | G32: 25 | H32: 26 | I32: 27 | J32: 28 | L32: 19 | M32: 19 | N32: 38 | O32: 57 | P32: 76 | Q32: 95 | R32: 114 | S32: 133 | T32: 152 | U32: 171
A33: 20 | B33: 21 | C33: 22 | D33: 23 | E33: 24 | F33: 25 | G33: 26 | H33: 27 | I33: 28 | J33: 29 | L33: 20 | M33: 20 | N33: 40 | O33: 60 | P33: 80 | Q33: 100 | R33: 120 | S33: 140 | T33: 160 | U33: 180

Sheet Transpose
A1: TRANSPOSE
B3: LIGNE | C3: COLONNE | D3: TRANSPOSE | E3: INDIRECT
B4: LIGNES | C4: COLONNES | D4: INDEX
B6: taba | C6: 1 | D6: donner le nom "taba", à la table d'entrée: (B5:B10)
A7: 1 | B7: 18
A8: 2 | B8: 20 | C8: 2 | D8: appliquer les fonctions excel suivantes sur cette table:
A9: 3 | B9: 2
A10: 4 | B10: 24 | C10: 3 | D10: obtenir le vecteur transposé
A11: 5 | B11: 26
A12: 6 | B12: 28 | D12: Solution naive:
D13: =B7 -> 18 | E13: =B8 -> 20 | F13: =C8 -> 2 | G13: =B10 -> 24 | H13: =B11 -> 26 | I13: =B12 -> 28
B15: LIGNES COLONNES | D15: Fonction Transpose
B16: =ROWS(taba) -> 6 | C16: =form(B16) -> =LIGNES(taba) | D16: =TRANSPOSE(taba) -> 18 | E16: 20 | F16: 2 | G16: 24 | H16: 26 | I16: 28 | J16: =form(I16) -> =TRANSPOSE(taba)
B17: =COLUMNS(taba) -> 1 | C17: =form(B17) -> =COLONNES(taba)
D18: Copier Coller Transpose
B19: LIGNE COLONNE | D19: 18 | E19: 20 | F19: 2 | G19: 24 | H19: 26 | I19: 28
B20: =ROW(taba) -> 7 | C20: =form(B20) -> =LIGNE(taba)
B21: =COLUMN(taba) -> 2 | C21: =form(B21) -> =COLONNE(taba) | D21: Copier click droit
D22: 18 | E22: 20 | F22: 2 | G22: 24 | H22: 26 | I22: 28
D24: Fonction Index
D25: 1 | E25: 2 | F25: 3 | G25: 4 | H25: 5 | I25: 6
D26: =INDEX(taba,D25) -> 18 | E26: 20 | F26: 2 | G26: 24 | H26: 26 | I26: 28 | J26: =form(I26) -> =INDEX(taba;I25)
D28: =COLUMN(D28) -> 4 | E28: 5 | F28: 6 | G28: 7 | H28: 8 | I28: 9
D29: Formule "tout en un"
D30: =INDEX(taba,COLUMN(D28)-COLUMN($D$28)+1) -> 18 | E30: 20 | F30: 2 | G30: 24 | H30: 26 | I30: 28 | J30: =form(I30) -> =INDEX(taba;COLONNE(I28)-COLONNE($D$28)+1)

Sheet TableSimpleEntrée
A1: UTILISATION DE LA FONCTION TABLE A SIMPLE ENTREE
B3: OPTION ENTREE SIMPLE (et unique) ET SORTIES MULTIPLES
A5: 1 | B5: On part d'une relation entre une cellule d'entrée unique (B16) et plusieurs cellules en sortie (D16 à G16) que je place en ligne, en utilisant des calculs quelconques
A6: 2 | B6: On crée une liste de valeurs à recalculer (en colonne de C17 à C27) dans laquelle on place les nouvelles valeurs d'input
A7: 3 | B7: Et pour finir on fait le calcul:
C8: Sélection de la table dans sa totalité (C16 à G27)
C9: Sélectionner la fonction | F9: MENU | G9: Données | H9: Table
C10: Choisir Cellule d'entrée en colonne et indiquer la Cellule d'entrée B16 puis return
B12: INPUTS
B13: 2 | D13: =$B$13^2 -> 4 | E13: =ACOS($B$13/500) -> 1.566796316 | F13: =LOG($B$13) -> 0.3010299957 | G13: =1/$B$13 -> 0.5
C14: 2 | D14: 4 | E14: 1.566796316 | F14: 0.3010299957 | G14: 0.5
C15: =C14+6 -> 8 | D15: 64 | E15: 1.554795644 | F15: 0.903089987 | G15: 0.125
C16: 14 | D16: 196 | E16: 1.542792667 | F16: 1.146128036 | G16: 0.07142857143
C17: 20 | D17: 400 | E17: 1.530785652 | F17: 1.301029996 | G17: 0.05
C18: 26 | D18: 676 | E18: 1.518772864 | F18: 1.414973348 | G18: 0.03846153846
C19: 32 | D19: 1024 | E19: 1.506752555 | F19: 1.505149978 | G19: 0.03125
C20: 38 | D20: 1444 | E20: 1.494722973 | F20: 1.579783597 | G20: 0.02631578947
C21: 44 | D21: 1936 | E21: 1.48268235 | F21: 1.643452676 | G21: 0.02272727273
C22: 50 | D22: 2500 | E22: 1.470628906 | F22: 1.698970004 | G22: 0.02
C23: 56 | D23: 3136 | E23: 1.45856084 | F23: 1.748188027 | G23: 0.01785714286
C24: 62 | D24: 3844 | E24: 1.446476337 | F24: 1.792391689 | G24: 0.01612903226
C26: Dans cet exemple, on calcule 4 fonctions différentes pour différentes entrées, saisies et allant de 2 à 62,
C27: Les 4 fonctions sont différentes, et sont saisies dans les cases allant de D16 à G16
C28: Les résultats s'affichent au croisement des lignes (entrée) et des colonnes ('fonctions)
B30: Cette fonction peut s'utiliser avec une seule colonne en sortie au lieu de 4 comme dans l'exemple
B31: En général on place la cellule d'entrée au début de la table en C16, mais ce n'est pas obligatoire
B32: La seconde option, Cellule d'entrée en ligne correspond au cas transposée, les lignes deviennent des colonnes et vice versa
B34: EXERCICE | C34: Calculer la table suivante avec les mêmes formules | I34: RESULTAT
B36: 51 | D36: =$B$36^2 -> 2601 | E36: =ACOS($B$36/500) -> 1.468618626 | F36: =LOG($B$36) -> 1.707570176 | G36: =1/$B$36 -> 0.01960784314 | J36: 2601 | K36: 1.468618626 | L36: 0.3010299957 | M36: 0.5
C37: 15 | D37: 225 | E37: 1.540791825 | F37: 1.176091259 | G37: 0.06666666667 | I37: 15 | J37: 225 | K37: 0.9995500337 | L37: 1.176091259 | M37: 0.06666666667
C38: 21 | D38: 441 | E38: 1.528783969 | F38: 1.322219295 | G38: 0.04761904762 | I38: 21 | J38: 441 | K38: 0.9991181296 | L38: 1.322219295 | M38: 0.04761904762
C39: 27 | D39: 729 | E39: 1.516770048 | F39: 1.431363764 | G39: 0.03703703704 | I39: 27 | J39: 729 | K39: 0.9985423543 | L39: 1.431363764 | M39: 0.03703703704
C40: 33 | D40: 1089 | E40: 1.504748317 | F40: 1.51851394 | G40: 0.0303030303 | I40: 33 | J40: 1089 | K40: 0.9978227905 | L40: 1.51851394 | M40: 0.0303030303
C41: 39 | D41: 1521 | E41: 1.492717017 | F41: 1.591064607 | G41: 0.02564102564 | I41: 39 | J41: 1521 | K41: 0.996959542 | L41: 1.591064607 | M41: 0.02564102564
C42: 45 | D42: 2025 | E42: 1.480674382 | F42: 1.653212514 | G42: 0.02222222222 | I42: 45 | J42: 2025 | K42: 0.995952733 | L42: 1.653212514 | M42: 0.02222222222
C43: 51 | D43: 2601 | E43: 1.468618626 | F43: 1.707570176 | G43: 0.01960784314 | I43: 51 | J43: 2601 | K43: 0.9948025086 | L43: 1.707570176 | M43: 0.01960784314
C44: 57 | D44: 3249 | E44: 1.456547947 | F44: 1.755874856 | G44: 0.01754385965 | I44: 57 | J44: 3249 | K44: 0.9935090343 | L44: 1.755874856 | M44: 0.01754385965
C45: 63 | D45: 3969 | E45: 1.444460526 | F45: 1.799340549 | G45: 0.01587301587 | I45: 63 | J45: 3969 | K45: 0.9920724964 | L45: 1.799340549 | M45: 0.01587301587
C46: 69 | D46: 4761 | E46: 1.432354518 | F46: 1.838849091 | G46: 0.01449275362 | I46: 69 | J46: 4761 | K46: 0.9904931018 | L46: 1.838849091 | M46: 0.01449275362
C47: 75 | D47: 5625 | E47: 1.420228054 | F47: 1.875061263 | G47: 0.01333333333 | I47: 75 | J47: 5625 | K47: 0.9887710779 | L47: 1.875061263 | M47: 0.01333333333

Sheet TableDoubleEntrée
A1: UTILISATION DE LA FONCTION TABLE A DOUBLE ENTREE
B4: OPTION ENTREES DOUBLE ET SORTIES MULTIPLES
A6: 1 | B6: On part d'une relation entre deux cellules d'entrée (J20 et J21) et une seule cellule en sortie (J23)
A7: 2 | B7: On crée une liste de valeurs à recalculer: en colonne je met des valeurs pour la variable X (C21 à C31) et en ligne, on met des valeurs pour la variable Y (D20 à G20)
A8: 3 | B8: Mettre absolument la fonction output dans la cellule en haut à droite de la table, à savoir en C20
A9: 4 | B9: Et pour finir on fait le calcul:
C10: Sélection de la table dans sa totalité (C20 à G31)
C11: Sélectionner la fonction | E11: MENU | F11: Données | G11: Table
C12: Choisir Cellule d'entrée en colonne la valeur d'input de X, à savoir J20 et dans la cellule d'entrée en ligne la variable Y donc la cellule J21
I19: INPUTS
C20: =J23 -> 13 | D20: 3 | E20: 5 | F20: 7 | G20: 15 | I20: X= | J20: 2
C21: 2 | D21: 13 | E21: 29 | F21: 53 | G21: 229 | I21: Y= | J21: 3
C22: =C21+6 -> 8 | D22: 73 | E22: 89 | F22: 113 | G22: 289 | I22: OUTPUT
C23: 14 | D23: 205 | E23: 221 | F23: 245 | G23: 421 | I23: =X*X+Y*Y | J23: =J20*J20+J21*J21 -> 13
C24: 20 | D24: 409 | E24: 425 | F24: 449 | G24: 625
C25: 26 | D25: 685 | E25: 701 | F25: 725 | G25: 901
C26: 32 | D26: 1033 | E26: 1049 | F26: 1073 | G26: 1249
C27: 38 | D27: 1453 | E27: 1469 | F27: 1493 | G27: 1669
C28: 44 | D28: 1945 | E28: 1961 | F28: 1985 | G28: 2161
C29: 50 | D29: 2509 | E29: 2525 | F29: 2549 | G29: 2725
C30: 56 | D30: 3145 | E30: 3161 | F30: 3185 | G30: 3361
C31: 62 | D31: 3853 | E31: 3869 | F31: 3893 | G31: 4069
B34: Cette fonction peut s'utiliser avec une seule colonne en sortie au lieu de 4 comme dans l'exemple
B35: En général on place la cellule d'entrée au début de la table en C20, mais ce n'est pas obligatoire
B36: La seconde option, Cellule d'entrée en ligne correspond au cas transposée, les lignes deviennent des colonnes et vice versa
B39: EXERCICE | D39: Même Table avec fonction X^3+racine(Y)
I41: RESULTAT
I43: 9.732050808 | J43: 3 | K43: 5 | L43: 7 | M43: 15 | N43: INPUTS
I44: 2 | J44: 9.732050808 | K44: 10.23606798 | L44: 10.64575131 | M44: 11.87298335 | N44: X= | O44: 2
I45: 8 | J45: 513.7320508 | K45: 514.236068 | L45: 514.6457513 | M45: 515.8729833 | N45: Y= | O45: 3
I46: 14 | J46: 2745.732051 | K46: 2746.236068 | L46: 2746.645751 | M46: 2747.872983 | N46: OUTPUT
I47: 20 | J47: 8001.732051 | K47: 8002.236068 | L47: 8002.645751 | M47: 8003.872983 | N47: =X*X*X+racine(Y) | O47: =O44*O44*O44+SQRT(O45) -> 9.732050808
I48: 26 | J48: 17577.73205 | K48: 17578.23607 | L48: 17578.64575 | M48: 17579.87298
I49: 32 | J49: 32769.73205 | K49: 32770.23607 | L49: 32770.64575 | M49: 32771.87298
I50: 38 | J50: 54873.73205 | K50: 54874.23607 | L50: 54874.64575 | M50: 54875.87298
I51: 44 | J51: 85185.73205 | K51: 85186.23607 | L51: 85186.64575 | M51: 85187.87298
I52: 50 | J52: 125001.7321 | K52: 125002.2361 | L52: 125002.6458 | M52: 125003.873
I53: 56 | J53: 175617.7321 | K53: 175618.2361 | L53: 175618.6458 | M53: 175619.873
I54: 62 | J54: 238329.7321 | K54: 238330.2361 | L54: 238330.6458 | M54: 238331.873

Sheet Dates
A1: CALCUL SUR LES DATES
C3: JOUR | D3: DATE | E3: MOIS.DECALER
C4: MOIS | D4: DATEVAL
C5: ANNEE | D5: DATEDIFF
B7: CONVERSION LITTERAL VERS NUMERIQUE
B9: jour | C9: mois | D9: année | F9: fonction Dateval | G9: jour | H9: mois | I9: année | J9: jour
B10: 3 | C10: février | D10: 2008 | E10: =B10&C10&D10 -> 3février2008 | F10: =DATEVALUE(E10) -> 2008-02-03 | G10: =DAY(F10) -> 3 | H10: =MONTH(F10) -> 2 | I10: =YEAR(F10) -> 2008 | J10: =F10 -> 2008-02-03
B11: 12 | C11: février | D11: 2007 | E11: =B11&C11&D11 -> 12février2007 | F11: =DATEVALUE(E11) -> 2007-02-12 | G11: =DAY(F11) -> 12 | H11: =MONTH(F11) -> 2 | I11: =YEAR(F11) -> 2007 | J11: =F11 -> 2007-02-12
B12: 21 | C12: avril | D12: 2008 | E12: =B12&C12&D12 -> 21avril2008 | F12: =DATEVALUE(E12) -> 2008-04-21 | G12: =DAY(F12) -> 21 | H12: =MONTH(F12) -> 4 | I12: =YEAR(F12) -> 2008 | J12: 2008-04-21
G13: JOUR(F10) | H13: MOIS(F10) | I13: ANNEE(F10)
B14: NOMBRE DE JOUR DE L'ANNEE
E15: 337+JOUR(DATE(C17;3;0))
C16: année | D16: DATE(C17;12;31)-DATE(C17-1;12;31)
C17: 1998 | D17: =DATE(C17,12,31)-DATE(C17-1,12,31) -> 365 | E17: =337+DAY(DATE(C17,3,0)) -> 365
C18: =C17+1 -> 1999 | D18: =DATE(C18,12,31)-DATE(C18-1,12,31) -> 365 | E18: =337+DAY(DATE(C18,3,0)) -> 365
C19: =C18+1 -> 2000 | D19: 366 | E19: 366
C20: 2001 | D20: 365 | E20: 365
C21: 2002 | D21: 365 | E21: 365
C22: 2003 | D22: 365 | E22: 365
C23: 2004 | D23: 366 | E23: 366
C24: 2005 | D24: 365 | E24: 365
C25: 2006 | D25: 365 | E25: 365
C26: 2007 | D26: 365 | E26: 365
C27: 2008 | D27: 366 | E27: 366
B29: NOMBRE DE JOUR DU MOIS
C30: mois | D30: année | E30: JOUR(DATE(D31;C31;0))
C31: 1 | D31: 2008 | E31: =DAY(DATE(D31,C31,0)) -> 31
C32: 2 | D32: =D31 -> 2008 | E32: =DAY(DATE(D32,C32,0)) -> 31
C33: 3 | D33: 2008 | E33: 29
C34: 4 | D34: 2008 | E34: 31
C35: 5 | D35: 2008 | E35: 30
C36: 6 | D36: 2008 | E36: 31
C37: 7 | D37: 2008 | E37: 30
C38: 8 | D38: 2008 | E38: 31
C39: 9 | D39: 2008 | E39: 31
C40: 10 | D40: 2008 | E40: 30
C41: 11 | D41: 2008 | E41: 31
C42: 12 | D42: 2008 | E42: 30
C43: 1 | D43: 2009 | E43: 31
C44: 2 | D44: 2009 | E44: 31
B46: TEST ANNEE BISSEXTILE
D47: SI(JOUR(DATE(C43;3;0))=29;"bissextile";"non bissextile")
C48: 1999 | D48: =IF(DAY(DATE(C48,3,0))=29,"bissextile","non bissextile") -> non bissextile
C49: 2000 | D49: =IF(DAY(DATE(C49,3,0))=29,"bissextile","non bissextile") -> bissextile
C50: 2001 | D50: non bissextile
C51: 2002 | D51: non bissextile
C52: 2003 | D52: non bissextile
C53: 2004 | D53: bissextile
C54: 2005 | D54: non bissextile
B56: REPARTITION DES JOURS PAR ANNEE ENTRE DEUX DATES
B57: ET(D59>$D$54;D59<$D$55)*(D59-$D$54)-ET(D58>$D$54;D58<$D$55)*(D58-$D$54)+(D59>$D$55)*$D$56-(D58>$D$55)*$D$56
C58: Start Date | D58: 2004-05-03
C59: End Date | D59: 2011-06-02
D60: =D59-D58 -> 2586
D61: DATE(C61;12;31) | E61: ET(D63>$D$58;D63<$D$59)*(D63-$D$58)-ET(D62>$D$58;D62<$D$59)*(D62-$D$58)+(D63>$D$59)*$D$60-(D62>$D$59)*$D$60
C62: 1999 | D62: =+DATE(C62,12,31) -> 1999-12-31
C63: 2000 | D63: =+DATE(C63,12,31) -> 2000-12-31 | E63: =AND(D63>$D$58,D63<$D$59)*(D63-$D$58)-AND(D62>$D$58,D62<$D$59)*(D62-$D$58)+(D63>$D$59)*$D$60-(D62>$D$59)*$D$60 -> 0
C64: 2001 | D64: 2001-12-31 | E64: =AND(D64>$D$58,D64<$D$59)*(D64-$D$58)-AND(D63>$D$58,D63<$D$59)*(D63-$D$58)+(D64>$D$59)*$D$60-(D63>$D$59)*$D$60 -> 0
C65: 2002 | D65: 2002-12-31 | E65: 0
C66: 2003 | D66: 2003-12-31 | E66: 0
C67: 2004 | D67: 2004-12-31 | E67: 242
C68: 2005 | D68: 2005-12-31 | E68: 365
C69: 2006 | D69: 2006-12-31 | E69: 365
C70: 2007 | D70: 2007-12-31 | E70: 365
C71: 2008 | D71: 2008-12-31 | E71: 366
C72: 2009 | D72: 2009-12-31 | E72: 365
C73: 2010 | D73: 2010-12-31 | E73: 365
C74: 2011 | D74: 2011-12-31 | E74: 153
C75: 2012 | D75: 2012-12-31 | E75: 0
C76: 2013 | D76: 2013-12-31 | E76: 0
C77: 2014 | D77: 2014-12-31 | E77: 0
C78: 2015 | D78: 2015-12-31 | E78: 0
C79: 2016
B81: FONCTION DATEDIF, DIFFERENCES
C83: jourdeb | D83: 2008-08-15
C84: jourfin | D84: 2009-10-18 | E84: DATEDIF($D$83;$D$84;D85) | H84: différence classique
D85: D | E85: =DATEDIF($D$83,$D$84,D85) -> 429 | G85: =D84-D83 -> 429 | H85: =form(G85) -> =D84-D83
D86: Y | E86: =DATEDIF($D$83,$D$84,D86) -> 1 | G86: =YEAR(D84)-YEAR(D83) -> 1 | H86: =form(G86) -> =ANNEE(D84)-ANNEE(D83)
D87: M | E87: 14 | G87: =MONTH(D84)-MONTH(D83)+12*G86 -> 14 | H87: =MOIS(D84)-MOIS(D83)+12*G86
D88: YM | E88: 2 | G88: =MONTH(D84)-MONTH(D83) -> 2 | H88: =MOIS(D84)-MOIS(D83)
D89: YD | E89: 64 | G89: =DATE(YEAR(D84),MONTH(D84),DAY(D84))-DATE(YEAR(D84),MONTH(D83),DAY(D83)) -> 64 | H89: =DATE(ANNEE(D84);MOIS(D84);JOUR(D84))-DATE(ANNEE(D84);MOIS(D83);JOUR(D83))
D90: MD | E90: 3 | G90: =DAY(D84)-DAY(D83) -> 3 | H90: =JOUR(D84)-JOUR(D83)
C92: jourdeb | D92: 2008-08-15
C93: jourfin | D93: 2010-05-12 | E93: DATEDIF($D$92;$D$93;D94) | H93: différence classique
D94: D | E94: =DATEDIF($D$92,$D$93,D94) -> 635 | G94: =D93-D92 -> 635 | H94: =form(G94) -> =D93-D92
D95: Y | E95: =DATEDIF($D$92,$D$93,D95) -> 1 | G95: =YEAR(D93)-YEAR(D92) -> 2 | H95: =ANNEE(D93)-ANNEE(D92)
D96: M | E96: 20 | G96: =MONTH(D93)-MONTH(D92)+12*G95 -> 21 | H96: =MOIS(D93)-MOIS(D92)+12*G95
D97: YM | E97: 8 | G97: =MONTH(D93)-MONTH(D92) -> -3 | H97: =MOIS(D93)-MOIS(D92)
D98: YD | E98: 270 | G98: =DATE(YEAR(D93),MONTH(D93),DAY(D93))-DATE(YEAR(D93),MONTH(D92),DAY(D92)) -> -95 | H98: =DATE(ANNEE(D93);MOIS(D93);JOUR(D93))-DATE(ANNEE(D93);MOIS(D92);JOUR(D92))
D99: MD | E99: 27 | G99: =DAY(D93)-DAY(D92) -> -3 | H99: =JOUR(D93)-JOUR(D92)

Sheet Actuariat
A1: ACTUARIAT
B3: FONCTIONS EXCEL UTILISEES
C5: FR
C6: VC
C7: VA | D7: VAN | E7: VAN.PAIEMENTS
C8: TRI | E8: TRI.PAIEMENTS
E9: VC.PAIEMENTS
A11: 1 | B11: CALCUL DE LA VALEUR FUTURE
C13: Placement de 1000 euros en début de chaque année pendant 4 ans sur un compte rapportant 10% par an
C14: Calculer le capital final, après 3 ans, après 4 ans
C16: Montant | D16: 1000
C17: Durée | D17: 4
C18: Taux | D18: 0.1
C20: VC | D20: =FV(D18,D17,D16) -> -4641 | E20: capital après 3 ans
E22: montant | F22: intérêt | G22: total
C23: Vérification | D23: année 1 | E23: =D16 -> 1000 | F23: =E23*$D$18 -> 100 | G23: =E23+F23 -> 1100
D24: année 2 | E24: =G23+$D$16 -> 2100 | F24: =E24*$D$18 -> 210 | G24: =E24+F24 -> 2310
D25: année 3 | E25: =G24+$D$16 -> 3310 | F25: =E25*$D$18 -> 331 | G25: =E25+F25 -> 3641
D26: année 4 | E26: =G25+$D$16 -> 4641 | F26: =E26*$D$18 -> 464.1 | G26: =E26+F26 -> 5105.1
A29: 2 | B29: CALCUL DE LA VALEUR ACTUELLE
C31: Placement rapportant 150 euros par an, pendant 6 ans
C32: Calculer la valeur actuelle en utilisant un taux d'actualisation de 4%
C34: Montant | D34: 150
C35: Durée | D35: 6
C36: Taux | D36: 0.04
C38: VA | D38: =-PV(D36,D35,D34) -> 786.3205285
C40: Vérification | F40: facteur actualisation | H40: flux actualisés
C41: Flux | D41: année 1 | E41: =D34 -> 150 | F41: 0 | G41: =POWER(1+$D$36,-F41) -> 1 | H41: =G41*E41 -> 150
D42: année 2 | E42: =E41 -> 150 | F42: 1 | G42: 0.9615384615 | H42: 144.2307692
D43: année 3 | E43: =E42 -> 150 | F43: 2 | G43: 0.924556213 | H43: 138.683432
D44: année 4 | E44: =E43 -> 150 | F44: 3 | G44: 0.8889963587 | H44: 133.3494538
D45: année 5 | E45: =E44 -> 150 | F45: 4 | G45: 0.854804191 | H45: 128.2206287
D46: année 6 | E46: =E45 -> 150 | F46: 5 | G46: 0.8219271068 | H46: 123.289066
H47: =SUM(H41:H46) -> 817.7733497
C48: REPONSE | D48: =-PV(D36,D35,D34)*(1+D36) -> 817.7733497
A50: 3 | B50: CALCUL DE LA VALEUR FUTURE
C52: Placement de 1000, 500, 1500 et 3000 en début de chaque année sur un compte rapportant 3% par an
C53: Calculer le capital final, après 3 ans, après 4 ans et calculer les intérêts reçus
C55: Taux | D55: 0.03
D57: montant | E57: solde début | F57: solde fin
C58: année 1 | D58: 1000 | E58: =D58 -> 1000 | F58: =E58*(1+$D$55) -> 1030
C59: année 2 | D59: 500 | E59: =F58+D59 -> 1530 | F59: =E59*(1+$D$55) -> 1575.9
C60: année 3 | D60: 1500 | E60: =F59+D60 -> 3075.9 | F60: =E60*(1+$D$55) -> 3168.177
C61: année 4 | D61: 3000 | E61: =F60+D61 -> 6168.177 | F61: =E61*(1+$D$55) -> 6353.22231
D62: =SUM(D58:D61) -> 6000 | F62: intérêts
C63: Résultats | D63: après 3 ans | E63: =E61 -> 6168.177 | F63: =E63-$D$62 -> 168.177
D64: après 4 ans | E64: =F61 -> 6353.22231 | F64: =E64-$D$62 -> 353.22231
C65: avec fonction VAN | E65: =NPV(D55,D58:D61)*POWER(1+D55,4) -> 6168.177
E66: =NPV(D55,D58:D61)*POWER(1+D55,5) -> 6353.22231
A68: 4 | B68: CALCUL DE LA VALEUR ACTUELLE
C70: Placement de 150, 200, 200, 250 et 400 euros en début de chaque année
C71: Calculer la valeur actuelle en utilisant un taux d'actualisation de 4%
C73: Taux | D73: 0.04
D75: montant | E75: facteur actualisation | G75: flux actualisés | I75: dates
C76: année 1 | D76: 150 | E76: 0 | F76: =POWER(1+$D$73,-E76) -> 1 | G76: =F76*D76 -> 150 | I76: =TODAY() -> 2018-10-22
C77: année 2 | D77: 200 | E77: 1 | F77: =POWER(1+$D$73,-E77) -> 0.9615384615 | G77: =F77*D77 -> 192.3076923 | I77: =I76+365 -> 2019-10-22
C78: année 3 | D78: 200 | E78: 2 | F78: =POWER(1+$D$73,-E78) -> 0.924556213 | G78: =F78*D78 -> 184.9112426 | I78: =I77+365 -> 2020-10-21
C79: année 4 | D79: 250 | E79: 3 | F79: =POWER(1+$D$73,-E79) -> 0.8889963587 | G79: =F79*D79 -> 222.2490897 | I79: =I78+365 -> 2021-10-21
C80: année 5 | D80: 400 | E80: 4 | F80: =POWER(1+$D$73,-E80) -> 0.854804191 | G80: =F80*D80 -> 341.9216764 | I80: =I79+365 -> 2022-10-21
G81: =SUM(G76:G80) -> 1091.389701
C82: VAN | D82: =NPV(D73,D76:D80) -> 1049.413174
C83: REPONSE | D83: =D82*(1+D73) -> 1091.389701
D84: =XNPV(D73,D76:D80,I76:I80) -> 1091.389701
A86: 5 | B86: CALCUL DE LA VALEUR ACTUELLE avec DES DATES
C88: Placement des montants suivants:
D89: Montant | E89: Date
C90: Flux 1 | D90: 250 | E90: 2010-05-04
C91: Flux 2 | D91: 1200 | E91: 2010-11-05
C92: Flux 3 | D92: 900 | E92: 2011-01-04
C93: Flux 4 | D93: -400 | E93: 2011-07-03
C94: Flux 5 | D94: 450 | E94: 2011-08-27
C95: Flux 6 | D95: 350 | E95: 2012-01-24
C97: Calculer la valeur actuelle en utilisant un taux d'actualisation de 4%
C99: Taux | D99: 0.04
C100: VAN.PAIEMENTS | D100: =XNPV(D99,D90:D95,E90:E95) -> 2675.321568
D102: montant | F102: durée | G102: facteur actua. | H102: flux actualisés
C103: année 1 | D103: =D90 -> 250 | E103: =E90 -> 2010-05-04 | F103: 0 | G103: =POWER(1+$D$73,-F103) -> 1 | H103: =G103*D103 -> 250
C104: année 2 | D104: =D91 -> 1200 | E104: 2010-11-05 | F104: =E104-$E$103 -> 185 | G104: =POWER(1+$D$99,-F104/365) -> 0.9803172928 | H104: 1176.380751
C105: année 3 | D105: 900 | E105: 2011-01-04 | F105: =E105-$E$103 -> 245 | G105: =POWER(1+$D$99,-F105/365) -> 0.9740172821 | H105: 876.6155538
C106: année 4 | D106: -400 | E106: 2011-07-03 | F106: =E106-$E$103 -> 425 | G106: =POWER(1+$D$99,-F106/365) -> 0.955359133 | H106: -382.1436532
C107: année 5 | D107: 450 | E107: 2011-08-27 | F107: =E107-$E$103 -> 480 | G107: =POWER(1+$D$99,-F107/365) -> 0.9497296402 | H107: 427.3783381
C108: année 6 | D108: 350 | E108: 2012-01-24 | F108: =E108-$E$103 -> 630 | G108: =POWER(1+$D$99,-F108/365) -> 0.9345445082 | H108: 327.0905779
H109: =SUM(H103:H108) -> 2675.321568
C110: REPONSE | D110: =D100 -> 2675.321568
A112: 6 | B112: CALCUL DU TAUX DE RENDEMENT D'UN PROJET
C114: Projet d'investissement de 1000 euros, rapportant 200, 260, 300 et 500 les années suivantes (en fin d'année)
C115: Calculer le taux de rentabilité du projet
D116: Flux | F116: Vérifications | G116: facteur actua | H116: flux actualisé | I116: flux décalé | J116: compte simulé
D117: -1000 | F117: 1 | G117: =POWER(1+$D$123,-F117) -> 0.9213765444 | H117: =G117*D117 -> -921.3765444 | I117: =D117 -> -1000 | J117: =D117 -> -1000
D118: 200 | F118: 2 | G118: =POWER(1+$D$123,-F118) -> 0.8489347365 | H118: =G118*D118 -> 169.7869473 | I118: =D118*G117 -> 184.2753089 | J118: =J117*(1+$D$123)+D118 -> -885.3325995
D119: 260 | F119: 3 | G119: =POWER(1+$D$123,-F119) -> 0.7821885539 | H119: =G119*D119 -> 203.369024 | I119: =D119*G118 -> 220.7230315 | J119: =J118*(1+$D$123)+D119 -> -700.8803316
D120: 300 | F120: 4 | G120: =POWER(1+$D$123,-F120) -> 0.7206901869 | H120: =G120*D120 -> 216.2070561 | I120: =D120*G119 -> 234.6565662 | J120: =J119*(1+$D$123)+D120 -> -460.6882722
D121: 500 | F121: 5 | G121: =POWER(1+$D$123,-F121) -> 0.664027034 | H121: =G121*D121 -> 332.013517 | I121: =D121*G120 -> 360.3450934 | J121: =J120*(1+$D$123)+D121 -> 1.324451659e-11
H122: =SUM(H117:H121) -> 8.98126018e-12 | I122: =SUM(I117:I121) -> 9.606537787e-12
C123: TRI | D123: =IRR(D117:D121) -> 0.08533259947
C125: Calculer le taux de rentabilité du projet si les flux sont reçus tous les 6 mois
C127: TRI | D127: =2*D123 -> 0.1706651989
C129: Contrôle du résultat avec la fonction VAN
C130: VAN | D130: =NPV(D123,D118:D121) -> 1000
A132: 7 | B132: CALCUL DU TAUX DE RENDEMENT D'UN PROJET avec 2 solutions
C134: Projet d'investissement de 11 000 euros, puis des revenus de 15 000 par an pendant 9 ans, et un remboursement in fine de 135 000
C135: Calculer les taux de rentabilité du projet
G136: Graphe de la Valeur Actuelle
C137: Flux | D137: -11000 | G137: 0 | H137: =NPV(G137,$D$137:$D$147)*(1+G137) -> -11000
C138: 1 | D138: 15000 | G138: =G137+0.15 -> 0.15 | H138: =NPV(G138,$D$137:$D$147)*(1+G138) -> 27203.82347
C139: 2 | D139: 15000 | G139: =G138+0.15 -> 0.3 | H139: 24492.36994
C140: 3 | D140: 15000 | G140: 0.45 | H140: 17871.00613
C141: 4 | D141: 15000 | G141: 0.6 | H141: 12408.38427
C142: 5 | D142: 15000 | G142: 0.75 | H142: 8368.943224
C143: 6 | D143: 15000 | G143: 0.9 | H143: 5394.827056
C144: 7 | D144: 15000 | G144: 1.05 | H144: 3160.382511
C145: 8 | D145: 15000 | G145: 1.2 | H145: 1438.817593
C146: 9 | D146: 15000 | G146: 1.35 | H146: 79.74599713
D147: -135000 | G147: 1.5 | H147: -1016.777216
G148: 1.65 | H148: -1918.40599
E149: Vérifications avec VAN
C150: TRI | D150: =IRR(D137:D147) -> 0.0186447889 | E150: =NPV(D150,$D$138:$D$147) -> 11000
D151: =IRR(D137:D147,0.8) -> 1.35992055 | E151: =NPV(D151,$D$138:$D$147) -> 11000
A153: 8 | B153: CALCUL DU TAUX DE RENDEMENT D'UN PROJET avec DES DATES
G154: Vérifications
D155: Flux | E155: Date | G155: durées | H155: facteur actua | J155: flux actualisé
D156: -11500 | E156: 2008-02-15 | G156: 0 | H156: =POWER(1+$D$162,-G156/365) -> 1 | J156: =H156*D156 -> -11500
D157: 2000 | E157: 2008-04-20 | G157: =E157-$E$156 -> 65 | H157: =POWER(1+$D$162,-G157/365) -> 0.9829954894 | J157: =H157*D157 -> 1965.990979
D158: 3000 | E158: 2008-06-19 | G158: =E158-$E$156 -> 125 | H158: =POWER(1+$D$162,-G158/365) -> 0.9675557755 | J158: =H158*D158 -> 2902.667327
D159: 5000 | E159: 2008-08-21 | G159: =E159-$E$156 -> 188 | H159: =POWER(1+$D$162,-G159/365) -> 0.9516050071 | J159: =H159*D159 -> 4758.025036
D160: 2000 | E160: 2008-10-20 | G160: =E160-$E$156 -> 248 | H160: =POWER(1+$D$162,-G160/365) -> 0.9366583373 | J160: =H160*D160 -> 1873.316675
J161: =SUM(J156:J160) -> 1.573335749e-05
C162: TRI,PAIEMENTS | D162: =XIRR(D156:D160,E156:E160) -> 0.1010981977
D163: =IRR(D156:D160) -> 0.01666007471
D164: =D163*6 -> 0.09996044826
A166: 9 | B166: CALCUL DE CAPITALISATION AVEC PLUSIEURS TAUX D'INTERETS
D168: Rates | F168: 1
D169: 0.02 | F169: =F168*(1+D169) -> 1.02
D170: 0.04 | F170: =F169*(1+D170) -> 1.0608
D171: 0.06 | F171: =F170*(1+D171) -> 1.124448
D172: 0.04 | F172: =F171*(1+D172) -> 1.16942592
D173: 0.08 | F173: =F172*(1+D173) -> 1.262979994
D175: =FVSCHEDULE(1,D169:D173) -> 1.262979994

Sheet Pret
A1: PRETS
A3: FONCTIONS EXCEL UTILISEES
B5: VPM | C5: (taux;npm;va;vc;type) | E5: Calcule le remboursement d'un emprunt
B6: TAUX | C6: (npm;vpm;va;vc;type;estimation) | E6: Calcule le taux d'intérêt
B7: NPM | C7: (taux;vpm;va;vc;type) | E7: Renvoie le nombre de versements
B8: INTPER | C8: (taux;pér;npm;va;vc;type) | E8: Renvoie, pour une période donnée, le montant des intérêts
B9: VA | C9: (taux;npm;vpm;vc;type) | E9: Calcule la valeur actuelle d'un investissement
B10: VC | C10: (taux;npm;vpm;va;type) | E10: Renvoie la valeur future d'un investissement
B11: PRINCPER | C11: (taux;pér;npm;va;vc;type) | E11: Calcule, pour une période donnée, la part de remboursement du principal
A13: LES ARGUMENTS
B15: vpm | C15: représente le montant du remboursement pour chaque période.
B16: taux | C16: représente le taux d'intérêt par période.
B17: pér | C17: représente la période pour laquelle vous souhaitez calculer les intérêts. La valeur spécifiée doit être comprise entre 1 et npm.
B18: npm | C18: représente le nombre total de périodes de paiement pendant la durée de l'emprunt.
B19: va | C19: représente la valeur actuelle du total des paiements futurs.
B20: vc | C20: représente la valeur future (valeur capitalisée), c'est-à-dire le montant que vous souhaitez atteindre après le dernier paiement. Si vc est omis, la valeur par défaut est 0 (la valeur future d'un emprunt, par exemple, est égale à 0).
B21: type | C21: peut prendre les valeurs 0 ou 1 et indique l'échéance des paiements. Si type est omis, la valeur par défaut est 0.
C22: 0 pour paiment en fin de période, 1 pour paiement en début de période, le défaut est 0
A24: 1 | B24: ECHEANCE CONSTANTE
C26: Emprunt de 100 000 euros sur 10 ans
C27: Calculer les échéances constantes, pour un remboursement annuel/mensuel à terme échu, à échoir
C28: Calculer le montant total des remboursement et la part des intérêts
B30: taux annuel | C30: annuités | F30: mensualités | I30: trimestres
B31: taux période | C31: 0.03 | D31: =C31 -> 0.03 | F31: =D31/12 -> 0.0025 | G31: =F31 -> 0.0025 | I31: =G31*3 -> 0.0075 | J31: =I31 -> 0.0075
B32: NB DE PERIODES | C32: 10 | D32: =C32 -> 10 | F32: =D32*12 -> 120 | G32: =F32 -> 120 | I32: =G32/3 -> 40 | J32: =I32 -> 40
B33: MONTANT | C33: 100000 | D33: 100000 | F33: 100000 | G33: 100000 | I33: 100000 | J33: 100000
B34: TYPE | C34: 0 | D34: 1 | F34: 0 | G34: 1 | I34: 0 | J34: 1
B36: ECHEANCE | C36: =-PMT(C31,C32,C33,,C34) -> 11723.05066 | D36: =-PMT(D31,D32,D33,,D34) -> 11381.60258 | F36: =-PMT(F31,F32,F33,,F34) -> 965.607447 | G36: =-PMT(G31,G32,G33,,G34) -> 963.1994484 | I36: =-PMT(I31,I32,I33,,I34) -> 2903.01561 | J36: =-PMT(J31,J32,J33,,J34) -> 2881.405072
B38: remb total | C38: =C32*C36 -> 117230.5066 | D38: =D32*D36 -> 113816.0258 | F38: =F32*F36 -> 115872.8936 | G38: =G32*G36 -> 115583.9338 | I38: =I32*I36 -> 116120.6244 | J38: =J32*J36 -> 115256.2029
B39: somme intérêts | C39: =C38-C33 -> 17230.50661 | D39: =D38-D33 -> 13816.02583 | F39: =F38-F33 -> 15872.89364 | G39: =G38-G33 -> 15583.9338 | I39: =I38-I33 -> 16120.62439 | J39: =J38-J33 -> 15256.20287
A41: 2 | B41: ECHEANCIERS
C43: Fabrication de l'échéancier
C45: TAUX | D45: =C31 -> 0.03
C46: NB PERIODES | D46: =+C32 -> 10
C47: MONTANT | D47: =+C33 -> 100000
B49: CRD | C49: INTERET | D49: CAPITAL | E49: ECHEANCE | G49: DF
A50: 1 | B50: =+D47 -> 100000 | C50: =B50*$D$45 -> 3000 | D50: =E50-C50 -> 8723.050661 | E50: =C36 -> 11723.05066 | G50: =POWER(1+$D$45,-A50) -> 0.9708737864
A51: 2 | B51: =B50-D50 -> 91276.94934 | C51: 2738.30848 | D51: =E51-C51 -> 8984.74218 | E51: =E50 -> 11723.05066 | G51: =POWER(1+$D$45,-A51) -> 0.9425959091
A52: 3 | B52: =B51-D51 -> 82292.20716 | C52: 2468.766215 | D52: =E52-C52 -> 9254.284446 | E52: =E51 -> 11723.05066 | G52: 0.9151416594
A53: 4 | B53: 73037.92271 | C53: 2191.137681 | D53: 9531.912979 | E53: 11723.05066 | G53: 0.8884870479
A54: 5 | B54: 63506.00973 | C54: 1905.180292 | D54: 9817.870368 | E54: 11723.05066 | G54: 0.8626087844
A55: 6 | B55: 53688.13937 | C55: 1610.644181 | D55: 10112.40648 | E55: 11723.05066 | G55: 0.8374842567
A56: 7 | B56: 43575.73289 | C56: 1307.271987 | D56: 10415.77867 | E56: 11723.05066 | G56: 0.8130915113
A57: 8 | B57: 33159.95421 | C57: 994.7986264 | D57: 10728.25203 | E57: 11723.05066 | G57: 0.7894092343
A58: 9 | B58: 22431.70218 | C58: 672.9510653 | D58: 11050.0996 | E58: 11723.05066 | G58: 0.7664167323
A59: 10 | B59: 11381.60258 | C59: 341.4480775 | D59: 11381.60258 | E59: 11723.05066 | G59: 0.7440939149
B60: =B59-D59 -> 0
B61: TOTAUX | C61: =SUM(C50:C59) -> 17230.50661 | D61: =SUM(D50:D59) -> 100000 | E61: =SUM(E50:E59) -> 117230.5066 | G61: =SUM(G50:G59) -> 8.530202837
C63: Vérification en utilisant les fonctions VA et VAN, lien entre les flux, le taux et le montant initial
C64: VAN | D64: =NPV(D45,E50:E59) -> 100000 | E64: =form(D64) -> =VAN(D45;E50:E59)
C65: VA | D65: =PV(D45,D46,E50) -> -100000 | E65: =form(D65) -> =VA(D45;D46;E50)
C67: Retrouver l'échéance constante en inversant la fonction VA, à l'aide du solveur
C68: Cellule d'entrée | D68: 11700
C69: Cellule de sortie | D69: =PV(D45,D46,D68)+D47+D68 -> 11896.62681
C71: Retrouver l'échéance constante en saisissant la formule du cours
D72: =D47*D45/(1-POWER(1+D45,-D46)) -> 11723.05066
A74: 3 | B74: ECHEANCIER AVEC AMORTISSEMENT CONSTANT
C77: Taux | D77: 0.04
C78: Nombre de périodes | D78: 10
C79: Montant | D79: 100000
B81: CRD | C81: INTERET | D81: CAPITAL | E81: ECHEANCE | G81: DF
A82: 1 | B82: =D79 -> 100000 | C82: =B82*$D$105 -> 4000 | D82: =D79/D78 -> 10000 | E82: =C82+D82 -> 14000 | G82: =POWER(1+$D$105,-A82) -> 0.9615384615
A83: 2 | B83: =B82-D82 -> 90000 | C83: 3600 | D83: =D82 -> 10000 | E83: =C83+D83 -> 13600 | G83: 0.924556213
A84: 3 | B84: =B83-D83 -> 80000 | C84: 3200 | D84: =D83 -> 10000 | E84: 13200 | G84: 0.8889963587
A85: 4 | B85: 70000 | C85: 2800 | D85: 10000 | E85: 12800 | G85: 0.854804191
A86: 5 | B86: 60000 | C86: 2400 | D86: 10000 | E86: 12400 | G86: 0.8219271068
A87: 6 | B87: 50000 | C87: 2000 | D87: 10000 | E87: 12000 | G87: 0.7903145257
A88: 7 | B88: 40000 | C88: 1600 | D88: 10000 | E88: 11600 | G88: 0.7599178132
A89: 8 | B89: 30000 | C89: 1200 | D89: 10000 | E89: 11200 | G89: 0.730690205
A90: 9 | B90: 20000 | C90: 800 | D90: 10000 | E90: 10800 | G90: 0.7025867356
A91: 10 | B91: 10000 | C91: 400 | D91: 10000 | E91: 10400 | G91: 0.6755641688
B92: =B91-D91 -> 0
B93: TOTAL | C93: =SUM(C82:C91) -> 22000 | D93: =SUM(D82:D91) -> 100000 | E93: =SUM(E82:E91) -> 122000 | G93: =SUM(G82:G91) -> 8.110895779
G94: =D79/G93 -> 12329.09443
C95: Contrôles avec les fonctions VA et VAN
C96: VAN | D96: =NPV(D77,E82:E91) -> 100000 | E96: =form(D96) -> =VAN(D77;E82:E91)
C98: Intérêts | D98: =(D78+1)/2*D77*D79 -> 22000 | E98: =form(D98) -> =(D78+1)/2*D77*D79
A101: 4 | B101: ECHEANCIERS DIFFERES
C103: Emprunt de 10 ans, dont les 4 premières années sont en franchise totale: d'intérêt et de capital
C105: TAUX | D105: 0.04
E107: =-F110 -> 22316.44446 | F107: <- Cellule a modifier
B108: CRD | C108: INTERET | D108: CAPITAL | E108: ECHEANCE
A109: 1 | B109: 100000 | C109: =B109*$D$105 -> 4000 | D109: =E109-C109 -> -4000 | E109: 0 | F109: Solution avec la Fonction VPM
A110: 2 | B110: =B109-D109 -> 104000 | C110: 4160 | D110: =E110-C110 -> -4160 | E110: =E109 -> 0 | F110: =PMT(D105,A114,B113) -> -22316.44446
A111: 3 | B111: =B110-D110 -> 108160 | C111: 4326.4 | D111: =E111-C111 -> -4326.4 | E111: =E110 -> 0
A112: 4 | B112: 112486.4 | C112: 4499.456 | D112: -4499.456 | E112: 0
A113: 5 | B113: 116985.856 | C113: 4679.43424 | D113: 17637.01022 | E113: =E107 -> 22316.44446
A114: 6 | B114: 99348.84578 | C114: 3973.953831 | D114: 18342.49063 | E114: 22316.44446
A115: 7 | B115: 81006.35516 | C115: 3240.254206 | D115: 19076.19025 | E115: 22316.44446
A116: 8 | B116: 61930.16491 | C116: 2477.206596 | D116: 19839.23786 | E116: 22316.44446
A117: 9 | B117: 42090.92705 | C117: 1683.637082 | D117: 20632.80738 | E117: 22316.44446
A118: 10 | B118: 21458.11967 | C118: 858.3247868 | D118: 21458.11967 | E118: 22316.44446
B119: 0 | C119: <--Target = 0
C121: Emprunt de 10 ans, dont les 4 premières années sont en franchise de capital, seuls les intérêts sont payés
C123: TAUX | D123: 0.04
C125: 0.04 | E125: =-F127 -> 19076.19025 | F125: <- Cellule a modifier
B126: CRD | C126: INTERET | D126: CAPITAL | E126: ECHEANCE
A127: 1 | B127: 100000 | C127: =B127*$D$123 -> 4000 | D127: =0 -> 0 | E127: =C127 -> 4000 | F127: =PMT(D123,A132,B127) -> -19076.19025
A128: 2 | B128: =B127-D127 -> 100000 | C128: 4000 | D128: =0 -> 0 | E128: =C128 -> 4000
A129: 3 | B129: =B128-D128 -> 100000 | C129: 4000 | D129: =0 -> 0 | E129: =C129 -> 4000
A130: 4 | B130: 100000 | C130: 4000 | D130: =0 -> 0 | E130: =C130 -> 4000
A131: 5 | B131: 100000 | C131: 4000 | D131: =E131-C131 -> 15076.19025 | E131: =E125 -> 19076.19025
A132: 6 | B132: 84923.80975 | C132: 3396.95239 | D132: 15679.23786 | E132: =E131 -> 19076.19025
A133: 7 | B133: 69244.57189 | C133: 2769.782876 | D133: 16306.40738 | E133: =E132 -> 19076.19025
A134: 8 | B134: 52938.16451 | C134: 2117.526581 | D134: 16958.66367 | E134: =E133 -> 19076.19025
A135: 9 | B135: 35979.50084 | C135: 1439.180034 | D135: 17637.01022 | E135: =E134 -> 19076.19025
A136: 10 | B136: 18342.49063 | C136: 733.699625 | D136: 18342.49063 | E136: =E135 -> 19076.19025
B137: -2.910383046e-11 | C137: <--Target = 0
A139: 5 | B139: PRET AVEC ANNUITES PROGRESSIVES
B141: Montant | D141: 100000
B142: Durée | D142: 10 | E142: years
B143: Taux | D143: 0.04
B144: Taux de progression | D144: 0.02
B145: Paiements en fin de période
B147: Taux d'inflation anticipé
B148: années | C148: 1 à 5 | D148: 0.04
C149: 6 à 10 | D149: 0.05
B151: Taux ajusté | C151: =(1+D143)/(1+D144)-1 -> 0.01960784314
B152: Montant ajusté | C152: =D141*(1+D144) -> 102000
B154: Première échéance | C154: =-PMT(C151,D142,C152) -> 11332.01952
B156: Taux réel | C156: =IRR(H158:H168) -> -0.002510617889
B158: CRD | C158: INTERET | D158: CAPITAL | E158: ECHEANCE | F158: INFLATION RATE | G158: DF | H158: =-D141 -> -100000
A159: 1 | B159: =D141 -> 100000 | C159: =B159*$D$143 -> 4000 | D159: =E159-C159 -> 7332.019524 | E159: =C154 -> 11332.01952 | F159: =D148 -> 0.04 | G159: =1/(1+F159) -> 0.9615384615 | H159: =G159*E159 -> 10896.17262
A160: 2 | B160: =B159-D159 -> 92667.98048 | C160: =B160*$D$143 -> 3706.719219 | D160: =E160-C160 -> 7851.940695 | E160: =E159*(1+$D$144) -> 11558.65991 | F160: =F159 -> 0.04 | G160: =G159*1/(1+F160) -> 0.924556213 | H160: =G160*E160 -> 10686.63084
A161: 3 | B161: 84816.03978 | C161: 3392.641591 | D161: =E161-C161 -> 8397.191521 | E161: =E160*(1+$D$144) -> 11789.83311 | F161: =F160 -> 0.04 | G161: =G160*1/(1+F161) -> 0.8889963587 | H161: 10481.11871
A162: 4 | B162: 76418.84826 | C162: 3056.75393 | D162: 8968.875844 | E162: 12025.62977 | F162: =F161 -> 0.04 | G162: 0.854804191 | H162: 10279.55873
A163: 5 | B163: 67449.97242 | C163: 2697.998897 | D163: 9568.143473 | E163: 12266.14237 | F163: =F162 -> 0.04 | G163: 0.8219271068 | H163: 10081.87491
A164: 6 | B164: 57881.82894 | C164: 2315.273158 | D164: 10196.19206 | E164: 12511.46522 | F164: =D149 -> 0.05 | G164: 0.7827877207 | H164: 9793.82134
A165: 7 | B165: 47685.63688 | C165: 1907.425475 | D165: 10854.26905 | E165: 12761.69452 | F165: =F164 -> 0.05 | G165: 0.745512115 | H165: 9513.997874
A166: 8 | B166: 36831.36784 | C166: 1473.254713 | D166: 11543.6737 | E166: 13016.92841 | F166: =F165 -> 0.05 | G166: 0.7100115381 | H166: 9242.169363
A167: 9 | B167: 25287.69414 | C167: 1011.507766 | D167: 12265.75921 | E167: 13277.26698 | F167: =F166 -> 0.05 | G167: 0.6762014648 | H167: 8978.107381
A168: 10 | B168: 13021.93492 | C168: 520.8773969 | D168: 13021.93492 | E168: 13542.81232 | F168: =F167 -> 0.05 | G168: 0.6440013951 | H168: 8721.590027
A169: 16 | B169: 3.819877747e-11
B171: VAN | C171: =NPV(D143,H159:H168) -> 80671.84375
B172: TRI | C172: =IRR(H158:H168) -> -0.002510617889
A175: 6 | B175: ECHEANCIER AVEC ANNUITES PROGRESSIVES
C177: Construire l'échéancier avec des échéances trimestrielles croissante de 20% par an
B179: Emprunt | C179: 100000
B180: Durée | C180: 4 ans
B181: Échéances | C181: Trimestrielles
C183: TAUX | D183: 0.04 | E183: =D183/4 -> 0.01
B184: CRD | C184: INTERET | D184: CAPITAL | E184: ECHEANCE | F184: 5108.76 | H184: DF
A185: 1 | B185: 100000 | C185: =ROUND(B185*$E$183,2) -> 1000 | D185: =E185-C185 -> 4108.76 | E185: =F184 -> 5108.76 | F185: 1 | G185: =F185 -> 1 | H185: =POWER(1+$E$183,-A185) -> 0.9900990099 | I185: =H185*G185 -> 0.9900990099 | J185: =H185*E185 -> 5058.178218
A186: 2 | B186: =B185-D185 -> 95891.24 | C186: 958.91 | D186: =E186-C186 -> 4149.85 | E186: =E185*F186 -> 5108.76 | F186: 1 | G186: =G185*F186 -> 1 | H186: 0.9802960494 | I186: =H186*G186 -> 0.9802960494 | J186: 5008.097245
A187: 3 | B187: =B186-D186 -> 91741.39 | C187: 917.41 | D187: 4191.35 | E187: =E186*F187 -> 5108.76 | F187: 1 | G187: =G186*F187 -> 1 | H187: 0.9705901479 | I187: 0.9705901479 | J187: 4958.512124
A188: 4 | B188: 87550.04 | C188: 875.5 | D188: 4233.26 | E188: 5108.76 | F188: 1 | G188: 1 | H188: 0.9609803445 | I188: 0.9609803445 | J188: 4909.417945
A189: 5 | B189: =B188-D188 -> 83316.78 | C189: 833.17 | D189: 5297.34 | E189: =ROUND(E188*F189,2) -> 6130.51 | F189: 1.2 | G189: 1.2 | H189: 0.9514656876 | I189: 1.141758825 | J189: 5832.969913
A190: 6 | B190: 78019.44 | C190: 780.19 | D190: 5350.32 | E190: 6130.51 | F190: 1 | G190: 1.2 | H190: 0.9420452353 | I190: 1.130454282 | J190: 5775.217735
A191: 7 | B191: 72669.12 | C191: 726.69 | D191: 5403.82 | E191: 6130.51 | F191: 1 | G191: 1.2 | H191: 0.9327180547 | I191: 1.119261666 | J191: 5718.037362
A192: 8 | B192: =B191-D191 -> 67265.3 | C192: 672.65 | D192: 5457.86 | E192: 6130.51 | F192: 1 | G192: 1.2 | H192: 0.9234832225 | I192: 1.108179867 | J192: 5661.42313
A193: 9 | B193: 61807.44 | C193: 618.07 | D193: 6738.54 | E193: =ROUND(E192*F193,2) -> 7356.61 | F193: 1.2 | G193: 1.44 | H193: 0.9143398242 | I193: 1.316649347 | J193: 6726.441494
A194: 10 | B194: 55068.9 | C194: 550.69 | D194: 6805.92 | E194: 7356.61 | F194: 1 | G194: 1.44 | H194: 0.9052869547 | I194: 1.303613215 | J194: 6659.843064
A195: 11 | B195: 48262.98 | C195: 482.63 | D195: 6873.98 | E195: 7356.61 | F195: 1 | G195: 1.44 | H195: 0.8963237175 | I195: 1.290706153 | J195: 6593.904024
A196: 12 | B196: 41389 | C196: 413.89 | D196: 6942.72 | E196: 7356.61 | F196: 1 | G196: 1.44 | H196: 0.8874492253 | I196: 1.277926884 | J196: 6528.617845
A197: 13 | B197: 34446.28 | C197: 344.46 | D197: 8483.47 | E197: =ROUND(E196*F197,2) -> 8827.93 | F197: 1.2 | G197: 1.728 | H197: 0.8786625993 | I197: 1.518328972 | J197: 7756.77192
A198: 14 | B198: 25962.81 | C198: 259.63 | D198: 8568.3 | E198: 8827.93 | F198: 1 | G198: 1.728 | H198: 0.8699629696 | I198: 1.503296011 | J198: 7679.972198
A199: 15 | B199: 17394.51 | C199: 173.95 | D199: 8653.98 | E199: 8827.93 | F199: 1 | G199: 1.728 | H199: 0.8613494748 | I199: 1.488411893 | J199: 7603.932869
A200: 16 | B200: 8740.53 | C200: 87.41 | D200: 8740.52 | E200: 8827.93 | F200: 1 | G200: 1.728 | H200: 0.8528212622 | I200: 1.473675141 | J200: =H200*E200 -> 7528.646405
B201: 0.00999999998 | C201: =SUM(C185:C200) -> 9695.25 | D201: =SUM(D185:D200) -> 99999.99 | E201: =SUM(E185:E200) -> 109695.24 | I201: =SUM(I185:I200) -> 19.57422781 | J201: =SUM(J185:J200) -> 99999.98349
J202: =C179/I201 -> 5108.758362
A203: 7 | B203: Table à une entrée: barême de prêts
C205: Echéancier à Échéances Constantes
B207: Emprunt | C207: 100000
B208: Durée | C208: 5
B209: Échéances | C209: Mensuelles
B210: Taux | C210: 0.04
E211: Somme Intérêts actualisés
C212: Echéance | D212: Somme des intérêts
C213: =H213 -> 22462.71135 | D213: =H214 -> 12313.55675 | E213: =H216 -> 11236.96467 | G213: Échéance | H213: =-PMT(C210,C208,C207) -> 22462.71135
B214: 0.02 | C214: 21215.83941 | D214: 6079.197052 | E214: 5804.708772 | G214: Somme Intérêts | H214: =H213*C208-C207 -> 12313.55675
B215: =B214+0.004 -> 0.024 | C215: 21462.76232 | D215: 7313.81159 | E215: 6920.105869 | G215: Somme Amo actua | H215: =(C208*H213)*POWER(1+C210,-C208-1) -> 88763.03533
B216: =B215+0.004 -> 0.028 | C216: 21710.91877 | D216: 8554.593855 | E216: 8020.823098 | G216: Somme Int actua | H216: =C207-H215 -> 11236.96467
B217: 0.032 | C217: 21960.30097 | D217: 9801.504848 | E217: 9107.068945
B218: 0.036 | C218: 22210.9011 | D218: 11054.50551 | E218: 10179.04873
B219: 0.04 | C219: 22462.71135 | D219: 12313.55675 | E219: 11236.96467
B220: 0.044 | C220: 22715.72388 | D220: 13578.6194 | E220: 12281.0159
B221: 0.048 | C221: 22969.93086 | D221: 14849.65428 | E221: 13311.39858
B222: 0.052 | C222: 23225.32444 | D222: 16126.6222 | E222: 14328.30589 | F222: =form(E222) -> =TABLE(;C210)
B225: Table à deux entrées: Calculer l'Echéance avec une variation des taux et des durées
B227: nominal | C227: 100000 | E227: Échéance | F227: =-PMT(C228,C229,C227) -> 36034.85392
B228: taux | C228: 0.04
B229: durée | C229: 3 | D229: ans
B231: =F227 -> 36034.85392 | C231: 1 | D231: 2 | E231: 3 | F231: 4 | G231: 5
B232: =B214 -> 0.02 | C232: 102000 | D232: 51504.9505 | E232: 34675.46726 | F232: 26262.37527 | G232: 21215.83941
B233: =B215 -> 0.024 | C233: 102400 | D233: 51807.11462 | E233: 34945.98096 | F233: 26517.78456 | G233: 21462.76232
B234: 0.028 | C234: 102800 | D234: 52109.66469 | E234: 35217.18059 | F234: 26774.15805 | G234: 21710.91877
B235: 0.032 | C235: 103200 | D235: 52412.59843 | E235: 35489.06202 | F235: 27031.48982 | G235: 21960.30097
B236: 0.036 | C236: 103600 | D236: 52715.91356 | E236: 35761.62115 | F236: 27289.77394 | G236: 22210.9011
B237: 0.04 | C237: 104000 | D237: 53019.60784 | E237: 36034.85392 | F237: 27549.00454 | G237: 22462.71135
B238: 0.044 | C238: 104400 | D238: 53323.67906 | E238: 36308.75627 | F238: 27809.17572 | G238: 22715.72388
B239: 0.048 | C239: 104800 | D239: 53628.125 | E239: 36583.32418 | F239: 28070.28162 | G239: 22969.93086
B240: 0.052 | C240: 105200 | D240: 53932.94347 | E240: 36858.55363 | F240: 28332.31639 | G240: 23225.32444 | H240: =form(G240) -> =TABLE(C229;C228)

Sheet FR-UK
A1: Fonctions Excel
E2: CATEGORIE | F2: Français | G2: Anglais
I3: =SUM(I4:I16) -> 450
A4: 1 | H4: CUBE | I4: =COUNTIF($D$11:$D$460,H4) -> 7
A5: 2 | H5: DATE | I5: =COUNTIF($D$11:$D$460,H5) -> 24
A6: 3 | D6: Fonctions supprimées | H6: DONNEES | I6: 12
A7: 4 | H7: FINANCE | I7: 55
A8: 5 | D8: Compatibilité | H8: INFORMATIONS | I8: 20
A9: 6 | D9: new | H9: INGENIERIE | I9: 54
H10: LOGIQUE | I10: 9
A11: 1 | C11: 1 | D11: CUBE | E11: =LEFT(D11,3) -> CUB | F11: JEUCUBE | G11: CUBESET | H11: MATHS | I11: 78
A12: 2 | C12: 2 | D12: CUBE | E12: =LEFT(D12,3) -> CUB | F12: MEMBRECUBE | G12: CUBEMEMBER | H12: RECHERCHE | I12: 19
A13: 3 | C13: 3 | D13: CUBE | E13: CUB | F13: MEMBREKPICUBE | G13: CUBEKPIMEMBER | H13: STATS | I13: 105
A14: 4 | C14: 4 | D14: CUBE | E14: CUB | F14: NBJEUCUBE | G14: CUBESETCOUNT | H14: STATS OLD | I14: 37
A15: 5 | C15: 5 | D15: CUBE | E15: CUB | F15: PROPRIETEMEMBRECUBE | G15: CUBEMEMBERPROPERTY | H15: TEXTE | I15: 27
A16: 6 | C16: 6 | D16: CUBE | E16: CUB | F16: RANGMEMBRECUBE | G16: CUBERANKEDMEMBER | H16: WEB | I16: 3
A17: 7 | C17: 7 | D17: CUBE | E17: CUB | F17: VALEURCUBE | G17: CUBEVALUE
A18: 8 | C18: 8 | D18: DATE | E18: DAT | F18: ANNEE | G18: YEAR
A19: 9 | C19: 9 | D19: DATE | E19: DAT | F19: AUJOURDHUI | G19: TODAY
A20: 10 | C20: 10 | D20: DATE | E20: DAT | F20: DATE | G20: DATE
A21: 11 | C21: 11 | D21: DATE | E21: DAT | F21: DATEVAL | G21: DATEVALUE
A22: 12 | C22: 12 | D22: DATE | E22: DAT | F22: FIN.MOIS | G22: EOMONTH
A23: 13 | C23: 13 | D23: DATE | E23: DAT | F23: FRACTION.ANNEE | G23: YEARFRAC
A24: 14 | C24: 14 | D24: DATE | E24: DAT | F24: HEURE | G24: HOUR
A25: 15 | C25: 15 | D25: DATE | E25: DAT | F25: JOUR | G25: DAY
A26: 16 | C26: 16 | D26: DATE | E26: DAT | F26: JOURS | G26: DAYS
A27: 17 | C27: 17 | D27: DATE | E27: DAT | F27: JOURS360 | G27: DAYS360
A28: 18 | C28: 18 | D28: DATE | E28: DAT | F28: JOURSEM | G28: WEEKDAY
A29: 19 | C29: 19 | D29: DATE | E29: DAT | F29: MAINTENANT | G29: NOW
A30: 20 | C30: 20 | D30: DATE | E30: DAT | F30: MINUTE | G30: MINUTE
A31: 21 | C31: 21 | D31: DATE | E31: DAT | F31: MOIS | G31: MONTH
A32: 22 | C32: 22 | D32: DATE | E32: DAT | F32: MOIS.DECALER | G32: EDATE
A33: 23 | C33: 23 | D33: DATE | E33: DAT | F33: NB.JOURS.OUVRES | G33: NETWORKDAYS
A34: 24 | C34: 24 | D34: DATE | E34: DAT | F34: NB.JOURS.OUVRES.INTL | G34: NETWORKDAYS.INTL
A35: 25 | C35: 25 | D35: DATE | E35: DAT | F35: NO.SEMAINE | G35: WEEKNUM
A36: 26 | C36: 26 | D36: DATE | E36: DAT | F36: NO.SEMAINE.ISO | G36: ISOWEEKNUM
A37: 27 | C37: 27 | D37: DATE | E37: DAT | F37: SECONDE | G37: SECOND
C38: 28 | D38: DATE | E38: DAT | F38: SERIE.JOUR.OUVRE | G38: WORKDAY
A39: 1 | C39: 29 | D39: DATE | E39: DAT | F39: SERIE.JOUR.OUVRE.INTL | G39: WORKDAY.INTL
A40: 2 | C40: 30 | D40: DATE | E40: DAT | F40: TEMPS | G40: TIME
A41: 3 | C41: 31 | D41: DATE | E41: DAT | F41: TEMPSVAL | G41: TIMEVALUE
A42: 4 | C42: 32 | D42: DONNEES | E42: DON | F42: BDECARTYPE | G42: DSTDEV
A43: 5 | C43: 33 | D43: DONNEES | E43: DON | F43: BDECARTYPEP | G43: DSTDEVP
A44: 6 | C44: 34 | D44: DONNEES | E44: DON | F44: BDLIRE | G44: DGET
A45: 7 | C45: 35 | D45: DONNEES | E45: DON | F45: BDMAX | G45: DMAX
A46: 8 | C46: 36 | D46: DONNEES | E46: DON | F46: BDMIN | G46: DMIN
A47: 9 | C47: 37 | D47: DONNEES | E47: DON | F47: BDMOYENNE | G47: DAVERAGE
A48: 10 | C48: 38 | D48: DONNEES | E48: DON | F48: BDNB | G48: DCOUNT
A49: 11 | C49: 39 | D49: DONNEES | E49: DON | F49: BDNBVAL | G49: DCOUNTA
A50: 12 | C50: 40 | D50: DONNEES | E50: DON | F50: BDPRODUIT | G50: DPRODUCT
C51: 41 | D51: DONNEES | E51: DON | F51: BDSOMME | G51: DSUM
A52: 1 | C52: 42 | D52: DONNEES | E52: DON | F52: BDVAR | G52: DVAR
A53: 2 | C53: 43 | D53: DONNEES | E53: DON | F53: BDVARP | G53: DVARP
A54: 3 | C54: 44 | D54: FINANCE | E54: FIN | F54: AMORDEGRC | G54: AMORDEGRC
A55: 4 | C55: 45 | D55: FINANCE | E55: FIN | F55: AMORLIN | G55: SLN
A56: 5 | C56: 46 | D56: FINANCE | E56: FIN | F56: AMORLINC | G56: AMORLINC
A57: 6 | C57: 47 | D57: FINANCE | E57: FIN | F57: CUMUL.INTER | G57: CUMIPMT
A58: 7 | C58: 48 | D58: FINANCE | E58: FIN | F58: CUMUL.PRINCPER | G58: CUMPRINC
A59: 7 | C59: 49 | D59: FINANCE | E59: FIN | F59: DATE.COUPON.PREC | G59: COUPPCD
A60: 8 | C60: 50 | D60: FINANCE | E60: FIN | F60: DATE.COUPON.SUIV | G60: COUPNCD
A61: 9 | C61: 51 | D61: FINANCE | E61: FIN | F61: DB | G61: DB
A62: 10 | C62: 52 | D62: FINANCE | E62: FIN | F62: DDB | G62: DDB
A63: 11 | C63: 53 | D63: FINANCE | E63: FIN | F63: DUREE | G63: DURATION
A64: 12 | C64: 54 | D64: FINANCE | E64: FIN | F64: DUREE.MODIFIEE | G64: MDURATION
A65: 13 | C65: 55 | D65: FINANCE | E65: FIN | F65: INTERET.ACC | G65: ACCRINT
B66: 1 | C66: 56 | D66: FINANCE | E66: FIN | F66: INTERET.ACC.MAT | G66: ACCRINTM
B67: 3 | C67: 57 | D67: FINANCE | E67: FIN | F67: INTPER | G67: IPMT
B68: 2 | C68: 58 | D68: FINANCE | E68: FIN | F68: ISPMT | G68: ISPMT
B69: 5 | C69: 59 | D69: FINANCE | E69: FIN | F69: NB.COUPONS | G69: COUPNUM
B70: 4 | C70: 60 | D70: FINANCE | E70: FIN | F70: NB.JOURS.COUPON.PREC | G70: COUPDAYBS
B71: 6 | C71: 61 | D71: FINANCE | E71: FIN | F71: NB.JOURS.COUPON.SUIV | G71: COUPDAYSNC
C72: 62 | D72: FINANCE | E72: FIN | F72: NB.JOURS.COUPONS | G72: COUPDAYS
A73: 1 | C73: 63 | D73: FINANCE | E73: FIN | F73: NPM | G73: NPER
A74: 2 | C74: 64 | D74: FINANCE | E74: FIN | F74: PDUREE | G74: PDURATION
A75: 3 | C75: 65 | D75: FINANCE | E75: FIN | F75: PRINCPER | G75: PPMT
A76: 4 | C76: 66 | D76: FINANCE | E76: =LEFT(D76,3) -> FIN | F76: PRIX.BON.TRESOR | G76: TBILLPRICE
A77: 5 | C77: 67 | D77: FINANCE | E77: FIN | F77: PRIX.DCOUPON.IRREG | G77: ODDLPRICE
A78: 6 | C78: 68 | D78: FINANCE | E78: FIN | F78: PRIX.DEC | G78: DOLLARDE
A79: 7 | C79: 69 | D79: FINANCE | E79: FIN | F79: PRIX.FRAC | G79: DOLLARFR
A80: 8 | C80: 70 | D80: FINANCE | E80: FIN | F80: PRIX.PCOUPON.IRREG | G80: ODDFPRICE
A81: 9 | C81: 71 | D81: FINANCE | E81: FIN | F81: PRIX.TITRE | G81: PRICE
A82: 10 | C82: 72 | D82: FINANCE | E82: FIN | F82: PRIX.TITRE.ECHEANCE | G82: PRICEMAT
A83: 11 | C83: 73 | D83: FINANCE | E83: FIN | F83: REND.DCOUPON.IRREG | G83: ODDLYIELD
A84: 12 | C84: 74 | D84: FINANCE | E84: FIN | F84: REND.PCOUPON.IRREG | G84: ODDFYIELD
A85: 13 | C85: 75 | D85: FINANCE | E85: FIN | F85: RENDEMENT.BON.TRESOR | G85: TBILLYIELD
A86: 14 | C86: 76 | D86: FINANCE | E86: FIN | F86: RENDEMENT.SIMPLE | G86: YIELDDISC
A87: 15 | C87: 77 | D87: FINANCE | E87: FIN | F87: RENDEMENT.TITRE | G87: YIELD
B88: 1 | C88: 78 | D88: FINANCE | E88: FIN | F88: RENDEMENT.TITRE.ECHEANCE | G88: YIELDMAT
B89: 2 | C89: 79 | D89: FINANCE | E89: FIN | F89: SYD | G89: SYD
C90: 80 | D90: FINANCE | E90: FIN | F90: TAUX | G90: RATE
A91: 1 | C91: 81 | D91: FINANCE | E91: FIN | F91: TAUX.EFFECTIF | G91: EFFECT
A92: 2 | C92: 82 | D92: FINANCE | E92: FIN | F92: TAUX.ESCOMPTE | G92: DISC
A93: 3 | C93: 83 | D93: FINANCE | E93: FIN | F93: TAUX.ESCOMPTE.R | G93: TBILLEQ
A94: 4 | C94: 84 | D94: FINANCE | E94: FIN | F94: TAUX.INT.EQUIV | G94: RRI
A95: 5 | C95: 85 | D95: FINANCE | E95: FIN | F95: TAUX.INTERET | G95: INTRATE
A96: 6 | C96: 86 | D96: FINANCE | E96: FIN | F96: TAUX.NOMINAL | G96: NOMINAL
A97: 7 | C97: 87 | D97: FINANCE | E97: FIN | F97: TRI | G97: IRR
A98: 8 | C98: 88 | D98: FINANCE | E98: FIN | F98: TRI.PAIEMENTS | G98: XIRR
A99: 9 | C99: 89 | D99: FINANCE | E99: FIN | F99: TRIM | G99: MIRR
A100: 10 | C100: 90 | D100: FINANCE | E100: FIN | F100: VA | G100: PV
A101: 11 | C101: 91 | D101: FINANCE | E101: FIN | F101: VALEUR.ENCAISSEMENT | G101: PRICEDISC
A102: 12 | C102: 92 | D102: FINANCE | E102: FIN | F102: VALEUR.NOMINALE | G102: RECEIVED
A103: 13 | C103: 93 | D103: FINANCE | E103: FIN | F103: VAN | G103: NPV
A104: 14 | C104: 94 | D104: FINANCE | E104: FIN | F104: VAN.PAIEMENTS | G104: XNPV
A105: 15 | C105: 95 | D105: FINANCE | E105: FIN | F105: VC | G105: FV
A106: 16 | C106: 96 | D106: FINANCE | E106: FIN | F106: VC.PAIEMENTS | G106: FVSCHEDULE
A107: 17 | C107: 97 | D107: FINANCE | E107: FIN | F107: VDB | G107: VDB
A108: 18 | C108: 98 | D108: FINANCE | E108: FIN | F108: VPM | G108: PMT
A109: 19 | C109: 99 | D109: INFORMATIONS | E109: INF | F109: CELLULE | G109: CELL
A110: 20 | C110: 100 | D110: INFORMATIONS | E110: INF | F110: EST.IMPAIR | G110: ISODD
A111: 21 | C111: 101 | D111: INFORMATIONS | E111: INF | F111: EST.PAIR | G111: ISEVEN
A112: 22 | C112: 102 | D112: INFORMATIONS | E112: INF | F112: ESTERR | G112: ISERR
A113: 23 | C113: 103 | D113: INFORMATIONS | E113: INF | F113: ESTERREUR | G113: ISERROR
A114: 24 | C114: 104 | D114: INFORMATIONS | E114: INF | F114: ESTFORMULE | G114: ISFORMULA
A115: 25 | C115: 105 | D115: INFORMATIONS | E115: INF | F115: ESTLOGIQUE | G115: ISLOGICAL
A116: 26 | C116: 106 | D116: INFORMATIONS | E116: INF | F116: ESTNA | G116: ISNA
A117: 27 | C117: 107 | D117: INFORMATIONS | E117: INF | F117: ESTNONTEXTE | G117: ISNONTEXT
A118: 28 | C118: 108 | D118: INFORMATIONS | E118: INF | F118: ESTNUM | G118: ISNUMBER
A119: 29 | C119: 109 | D119: INFORMATIONS | E119: INF | F119: ESTREF | G119: ISREF
A120: 30 | C120: 110 | D120: INFORMATIONS | E120: INF | F120: ESTTEXTE | G120: ISTEXT
A121: 31 | C121: 111 | D121: INFORMATIONS | E121: INF | F121: ESTVIDE | G121: ISBLANK
A122: 32 | C122: 112 | D122: INFORMATIONS | E122: INF | F122: FEUILLE | G122: SHEET
A123: 33 | C123: 113 | D123: INFORMATIONS | E123: INF | F123: FEUILLES | G123: SHEETS
A124: 34 | C124: 114 | D124: INFORMATIONS | E124: INF | F124: INFORMATIONS | G124: INFO
A125: 35 | C125: 115 | D125: INFORMATIONS | E125: INF | F125: N | G125: N
A126: 36 | C126: 116 | D126: INFORMATIONS | E126: INF | F126: NA | G126: NA
A127: 37 | C127: 117 | D127: INFORMATIONS | E127: INF | F127: TYPE | G127: TYPE
A128: 38 | C128: 118 | D128: INFORMATIONS | E128: INF | F128: TYPE.ERREUR | G128: ERROR.TYPE
A129: 39 | C129: 119 | D129: INGENIERIE | E129: ING | F129: BESSELI | G129: BESSELI
A130: 40 | C130: 120 | D130: INGENIERIE | E130: ING | F130: BESSELJ | G130: BESSELJ
A131: 41 | C131: 121 | D131: INGENIERIE | E131: ING | F131: BESSELK | G131: BESSELK
A132: 42 | C132: 122 | D132: INGENIERIE | E132: ING | F132: BESSELY | G132: BESSELY
A133: 43 | C133: 123 | D133: INGENIERIE | E133: ING | F133: BINDEC | G133: BIN2DEC
A134: 44 | C134: 124 | D134: INGENIERIE | E134: ING | F134: BINHEX | G134: BIN2HEX
A135: 45 | C135: 125 | D135: INGENIERIE | E135: ING | F135: BINOCT | G135: BIN2OCT
A136: 46 | C136: 126 | D136: INGENIERIE | E136: ING | F136: BITDECALD | G136: BITRSHIFT
A137: 47 | C137: 127 | D137: INGENIERIE | E137: ING | F137: BITDECALG | G137: BITLSHIFT
A138: 48 | C138: 128 | D138: INGENIERIE | E138: ING | F138: BITET | G138: BITAND
A139: 49 | C139: 129 | D139: INGENIERIE | E139: ING | F139: BITOU | G139: BITOR
A140: 50 | C140: 130 | D140: INGENIERIE | E140: =LEFT(D140,3) -> ING | F140: BITOUEXCLUSIF | G140: BITXOR
A141: 51 | C141: 131 | D141: INGENIERIE | E141: ING | F141: COMPLEXE | G141: COMPLEX
A142: 52 | C142: 132 | D142: INGENIERIE | E142: ING | F142: COMPLEXE.ARGUMENT | G142: IMARGUMENT
B143: 1 | C143: 133 | D143: INGENIERIE | E143: ING | F143: COMPLEXE.CONJUGUE | G143: IMCONJUGATE
B144: 2 | C144: 134 | D144: INGENIERIE | E144: ING | F144: COMPLEXE.COS | G144: IMCOS
B145: 3 | C145: 135 | D145: INGENIERIE | E145: ING | F145: COMPLEXE.COSH | G145: IMCOSH
B146: 4 | C146: 136 | D146: INGENIERIE | E146: ING | F146: COMPLEXE.COT | G146: IMCOT
B147: 5 | C147: 137 | D147: INGENIERIE | E147: ING | F147: COMPLEXE.CSC | G147: IMCSC
B148: 6 | C148: 138 | D148: INGENIERIE | E148: ING | F148: COMPLEXE.CSCH | G148: IMCSCH
B149: 7 | C149: 139 | D149: INGENIERIE | E149: ING | F149: COMPLEXE.DIFFERENCE | G149: IMSUB
C150: 140 | D150: INGENIERIE | E150: ING | F150: COMPLEXE.DIV | G150: IMDIV
A151: 1 | C151: 141 | D151: INGENIERIE | E151: ING | F151: COMPLEXE.EXP | G151: IMEXP
A152: 2 | C152: 142 | D152: INGENIERIE | E152: ING | F152: COMPLEXE.IMAGINAIRE | G152: IMAGINARY
A153: 3 | C153: 143 | D153: INGENIERIE | E153: ING | F153: COMPLEXE.LN | G153: IMLN
A154: 4 | C154: 144 | D154: INGENIERIE | E154: ING | F154: COMPLEXE.LOG10 | G154: IMLOG10
A155: 5 | C155: 145 | D155: INGENIERIE | E155: ING | F155: COMPLEXE.LOG2 | G155: IMLOG2
A156: 6 | C156: 146 | D156: INGENIERIE | E156: ING | F156: COMPLEXE.MODULE | G156: IMABS
A157: 7 | C157: 147 | D157: INGENIERIE | E157: ING | F157: COMPLEXE.PRODUIT | G157: IMPRODUCT
A158: 8 | C158: 148 | D158: INGENIERIE | E158: ING | F158: COMPLEXE.PUISSANCE | G158: IMPOWER
A159: 9 | C159: 149 | D159: INGENIERIE | E159: ING | F159: COMPLEXE.RACINE | G159: IMSQRT
A160: 10 | C160: 150 | D160: INGENIERIE | E160: ING | F160: COMPLEXE.REEL | G160: IMREAL
A161: 11 | C161: 151 | D161: INGENIERIE | E161: ING | F161: COMPLEXE.SEC | G161: IMSEC
A162: 12 | C162: 152 | D162: INGENIERIE | E162: ING | F162: COMPLEXE.SECH | G162: IMSECH
A163: 13 | C163: 153 | D163: INGENIERIE | E163: ING | F163: COMPLEXE.SIN | G163: IMSIN
A164: 14 | C164: 154 | D164: INGENIERIE | E164: ING | F164: COMPLEXE.SINH | G164: IMSINH
A165: 15 | C165: 155 | D165: INGENIERIE | E165: ING | F165: COMPLEXE.SOMME | G165: IMSUM
A166: 16 | C166: 156 | D166: INGENIERIE | E166: ING | F166: COMPLEXE.TAN | G166: IMTAN
A167: 17 | C167: 157 | D167: INGENIERIE | E167: ING | F167: CONVERT | G167: CONVERT
A168: 18 | C168: 158 | D168: INGENIERIE | E168: ING | F168: DECBIN | G168: DEC2BIN
A169: 19 | C169: 159 | D169: INGENIERIE | E169: ING | F169: DECHEX | G169: DEC2HEX
A170: 20 | C170: 160 | D170: INGENIERIE | E170: ING | F170: DECOCT | G170: DEC2OCT
A171: 21 | C171: 161 | D171: INGENIERIE | E171: ING | F171: DELTA | G171: DELTA
A172: 22 | C172: 162 | D172: INGENIERIE | E172: ING | F172: ERF | G172: ERF
A173: 23 | C173: 163 | D173: INGENIERIE | E173: ING | F173: ERF.PRECIS | G173: ERF.PRECISE
A174: 24 | C174: 164 | D174: INGENIERIE | E174: ING | F174: ERFC | G174: ERFC
A175: 25 | C175: 165 | D175: INGENIERIE | E175: ING | F175: ERFC.PRECIS | G175: ERFC.PRECISE
A176: 26 | C176: 166 | D176: INGENIERIE | E176: ING | F176: HEXBIN | G176: HEX2BIN
A177: 27 | C177: 167 | D177: INGENIERIE | E177: ING | F177: HEXDEC | G177: HEX2DEC
A178: 28 | C178: 168 | D178: INGENIERIE | E178: ING | F178: HEXOCT | G178: HEX2OCT
A179: 29 | C179: 169 | D179: INGENIERIE | E179: ING | F179: OCTBIN | G179: OCT2BIN
A180: 30 | C180: 170 | D180: INGENIERIE | E180: ING | F180: OCTDEC | G180: OCT2DEC
A181: 31 | C181: 171 | D181: INGENIERIE | E181: ING | F181: OCTHEX | G181: OCT2HEX
A182: 32 | C182: 172 | D182: INGENIERIE | E182: ING | F182: SUP.SEUIL | G182: GESTEP
A183: 33 | C183: 173 | D183: LOGIQUE | E183: LOG | F183: ET | G183: AND
A184: 34 | C184: 174 | D184: LOGIQUE | E184: LOG | F184: NON | G184: NOT
A185: 35 | C185: 175 | D185: LOGIQUE | E185: LOG | F185: OU | G185: OR
A186: 36 | C186: 176 | D186: LOGIQUE | E186: LOG | F186: OUX | G186: XOR
A187: 37 | C187: 177 | D187: LOGIQUE | E187: LOG | F187: SI | G187: IF
A188: 38 | C188: 178 | D188: LOGIQUE | E188: LOG | F188: SI.NON.DISP | G188: IFNA
A189: 39 | C189: 179 | D189: LOGIQUE | E189: LOG | F189: SIERREUR | G189: IFERROR
A190: 40 | C190: 180 | D190: LOGIQUE | E190: LOG | F190: FALSE | G190: FALSE
A191: 41 | C191: 181 | D191: LOGIQUE | E191: LOG | F191: TRUE | G191: TRUE
A192: 42 | C192: 182 | D192: MATHS | E192: MAT | F192: ABS | G192: ABS
A193: 43 | C193: 183 | D193: MATHS | E193: MAT | F193: ACOS | G193: ACOS
A194: 44 | C194: 184 | D194: MATHS | E194: MAT | F194: ACOSH | G194: ACOSH
A195: 45 | C195: 185 | D195: MATHS | E195: MAT | F195: ACOT | G195: ACOT
A196: 46 | C196: 186 | D196: MATHS | E196: MAT | F196: ACOTH | G196: ACOTH
A197: 47 | C197: 187 | D197: MATHS | E197: MAT | F197: AGREGAT | G197: AGGREGATE
A198: 48 | C198: 188 | D198: MATHS | E198: MAT | F198: ALEA | G198: RAND
A199: 49 | C199: 189 | D199: MATHS | E199: MAT | F199: ALEA.ENTRE.BORNES | G199: RANDBETWEEN
A200: 50 | C200: 190 | D200: MATHS | E200: MAT | F200: ARRONDI | G200: ROUND
... 260 more rows

Sheet lexique
A1: LEXIQUE
B3: Fonction en français | C3: Fonction en anglais | D3: Description de la fonction
A4: FINANCE | B4: AMORDEGRC | C4: AMORDEGRC | D4: Renvoie l'amortissement correspondant à chaque période comptable en utilisant un coefficient d'amortissement.
A5: FINANCE | B5: AMORLIN | C5: SLN | D5: Calcule l'amortissement linéaire d'un bien pour une période donnée.
A6: FINANCE | B6: AMORLINC | C6: AMORLINC | D6: Renvoie l'amortissement d'un bien à la fin d'une période fiscale donnée.
A7: FINANCE | B7: CUMUL.INTER | C7: CUMIPMT | D7: Renvoie l'intérêt cumulé payé sur un emprunt entre deux périodes.
A8: FINANCE | B8: CUMUL.PRINCPER | C8: CUMPRINC | D8: Renvoie le montant cumulé des remboursements du capital d'un emprunt effectués entre deux périodes.
A9: FINANCE | B9: DATE.COUPON.PREC | C9: COUPPCD | D9: Renvoie la date de coupon précédant la date de règlement.
A10: FINANCE | B10: DATE.COUPON.SUIV | C10: COUPNCD | D10: Renvoie la première date de coupon ultérieure à la date de règlement.
A11: FINANCE | B11: DB | C11: DB | D11: Renvoie l'amortissement d'un bien pour une période spécifiée en utilisant la méthode de l'amortissement dégressif à taux fixe.
A12: FINANCE | B12: DDB | C12: DDB | D12: Renvoie l'amortissement d'un bien pour toute période spécifiée, en utilisant la méthode de l'amortissement dégressif à taux double ou selon un coefficient à spécifier.
A13: FINANCE | B13: DUREE | C13: DURATION | D13: Renvoie la durée, en années, d'un titre dont l'intérêt est perçu périodiquement.
A14: FINANCE | B14: DUREE.MODIFIEE | C14: MDURATION | D14: Renvoie la durée de Macauley modifiée pour un titre ayant une valeur nominale hypothétique de 100 euros.
A15: FINANCE | B15: INTERET.ACC | C15: ACCRINT | D15: Renvoie l'intérêt couru non échu d'un titre dont l'intérêt est perçu périodiquement.
A16: FINANCE | B16: INTERET.ACC.MAT | C16: ACCRINTM | D16: Renvoie l'intérêt couru non échu d'un titre dont l'intérêt est perçu à l'échéance.
A17: FINANCE | B17: INTPER | C17: IPMT | D17: Calcule le montant des intérêts d'un investissement pour une période donnée.
A18: FINANCE | B18: ISPMT | C18: ISPMT | D18: Calcule le montant des intérêts d'un investissement pour une période donnée.
A19: FINANCE | B19: NB.COUPONS | C19: COUPNUM | D19: Renvoie le nombre de coupons dus entre la date de règlement et la date d'échéance.
A20: FINANCE | B20: NB.JOURS.COUPON.PREC | C20: COUPDAYBS | D20: Renvoie le nombre de jours entre le début de la période de coupon et la date de liquidation.
A21: FINANCE | B21: NB.JOURS.COUPON.SUIV | C21: COUPDAYSNC | D21: Renvoie le nombre de jours entre la date de liquidation et la date du coupon suivant la date de liquidation.
A22: FINANCE | B22: NB.JOURS.COUPONS | C22: COUPDAYS | D22: Renvoie le nombre de jours pour la période du coupon contenant la date de liquidation.
A23: FINANCE | B23: NPM | C23: NPER | D23: Renvoie le nombre de versements nécessaires pour rembourser un emprunt.
A24: FINANCE | B24: PDUREE | C24: PDURATION | D24: Renvoie le nombre de périodes requises pour qu'un investissement atteigne une valeur spécifiée (2013).
A25: FINANCE | B25: PRINCPER | C25: PPMT | D25: Calcule, pour une période donnée, la part de remboursement du principal d'un investissement.
A26: FINANCE | B26: PRIX.BON.TRESOR | C26: TBILLPRICE | D26: Renvoie le prix d'un bon du Trésor d'une valeur nominale de 100 euros.
A27: FINANCE | B27: PRIX.DCOUPON.IRREG | C27: ODDLPRICE | D27: Renvoie le prix par tranche de valeur nominale de 100 euros d'un titre dont la dernière période de coupon est irrégulière.
A28: FINANCE | B28: PRIX.DEC | C28: DOLLARDE | D28: Convertit un prix en euros, exprimé sous forme de fraction, en un prix en euros exprimé sous forme de nombre décimal.
A29: FINANCE | B29: PRIX.FRAC | C29: DOLLARFR | D29: Convertit un prix en euros, exprimé sous forme de nombre décimal, en un prix en euros exprimé sous forme de fraction.
A30: FINANCE | B30: PRIX.PCOUPON.IRREG | C30: ODDFPRICE | D30: Renvoie le prix par tranche de valeur nominale de 100 euros d'un titre dont la première période de coupon est irrégulière.
A31: FINANCE | B31: PRIX.TITRE | C31: PRICE | D31: Renvoie le prix d'un titre rapportant des intérêts périodiques, pour une valeur nominale de 100 euros.
A32: FINANCE | B32: PRIX.TITRE.ECHEANCE | C32: PRICEMAT | D32: Renvoie le prix d'un titre dont la valeur nominale est 100 euros et qui rapporte des intérêts à l'échéance.
A33: FINANCE | B33: REND.DCOUPON.IRREG | C33: ODDLYIELD | D33: Renvoie le taux de rendement d'un titre dont la dernière période de coupon est irrégulière.
A34: FINANCE | B34: REND.PCOUPON.IRREG | C34: ODDFYIELD | D34: Renvoie le taux de rendement d'un titre dont la première période de coupon est irrégulière.
A35: FINANCE | B35: RENDEMENT.BON.TRESOR | C35: TBILLYIELD | D35: Calcule le taux de rendement d'un bon du Trésor.
A36: FINANCE | B36: RENDEMENT.SIMPLE | C36: YIELDDISC | D36: Calcule le taux de rendement d'un emprunt à intérêt simple (par exemple, un bon du Trésor).
A37: FINANCE | B37: RENDEMENT.TITRE | C37: YIELD | D37: Calcule le rendement d'un titre rapportant des intérêts périodiquement.
A38: FINANCE | B38: RENDEMENT.TITRE.ECHEANCE | C38: YIELDMAT | D38: Renvoie le rendement annuel d'un titre qui rapporte des intérêts à l'échéance.
A39: FINANCE | B39: SYD | C39: SYD | D39: Calcule l'amortissement d'un bien pour une période donnée sur la base de la méthode américaine Sum-of-Years Digits (amortissement dégressif à taux décroissant appliqué à une valeur constante).
A40: FINANCE | B40: TAUX | C40: RATE | D40: Calcule le taux d'intérêt par période pour une annuité.
A41: FINANCE | B41: TAUX.EFFECTIF | C41: EFFECT | D41: Renvoie le taux d'intérêt annuel effectif.
A42: FINANCE | B42: TAUX.ESCOMPTE | C42: DISC | D42: Calcule le taux d'escompte d'une transaction.
A43: FINANCE | B43: TAUX.ESCOMPTE.R | C43: TBILLEQ | D43: Renvoie le taux d'escompte rationnel d'un bon du Trésor.
A44: FINANCE | B44: TAUX.INT.EQUIV | C44: RRI | D44: Renvoie un taux d'intérêt équivalent pour la croissance d'un investissement (2013).
A45: FINANCE | B45: TAUX.INTERET | C45: INTRATE | D45: Affiche le taux d'intérêt d'un titre totalement investi.
A46: FINANCE | B46: TAUX.NOMINAL | C46: NOMINAL | D46: Calcule le taux d'intérêt nominal annuel.
A47: FINANCE | B47: TRI | C47: IRR | D47: Calcule le taux de rentabilité interne d'un investissement pour une succession de trésoreries.
A48: FINANCE | B48: TRI.PAIEMENTS | C48: XIRR | D48: Calcule le taux de rentabilité interne d'un ensemble de paiements non périodiques.
A49: FINANCE | B49: TRIM | C49: MIRR | D49: Calcule le taux de rentabilité interne lorsque les paiements positifs et négatifs sont financés à des taux différents.
A50: FINANCE | B50: VA | C50: PV | D50: Calcule la valeur actuelle d'un investissement.
A51: FINANCE | B51: VALEUR.ENCAISSEMENT | C51: PRICEDISC | D51: Renvoie la valeur d'encaissement d'un escompte commercial, pour une valeur nominale de 100 euros.
A52: FINANCE | B52: VALEUR.NOMINALE | C52: RECEIVED | D52: Renvoie la valeur nominale à échéance d'un effet de commerce.
A53: FINANCE | B53: VAN | C53: NPV | D53: Calcule la valeur actuelle nette d'un investissement basé sur une série de décaissements et un taux d'escompte.
A54: FINANCE | B54: VAN.PAIEMENTS | C54: XNPV | D54: Renvoie la valeur actuelle nette d'un ensemble de paiements non périodiques.
A55: FINANCE | B55: VC | C55: FV | D55: Renvoie la valeur future d'un investissement.
A56: FINANCE | B56: VC.PAIEMENTS | C56: FVSCHEDULE | D56: Calcule la valeur future d'un investissement en appliquant une série de taux d'intérêt composites.
A57: FINANCE | B57: VDB | C57: VDB | D57: Renvoie l'amortissement d'un bien pour une période spécifiée ou partielle en utilisant une méthode de l'amortissement dégressif à taux fixe.
A58: FINANCE | B58: VPM | C58: PMT | D58: Calcule le paiement périodique d'un investissement donné.
A59: DATE | B59: ANNEE | C59: YEAR | D59: Convertit un numéro de série en année.
A60: DATE | B60: AUJOURDHUI | C60: TODAY | D60: Renvoie le numéro de série de la date du jour.
A61: DATE | B61: DATE | C61: DATE | D61: Renvoie le numéro de série d'une date précise.
A62: DATE | B62: DATEVAL | C62: DATEVALUE | D62: Convertit une date représentée sous forme de texte en numéro de série.
A63: DATE | B63: FIN.MOIS | C63: EOMONTH | D63: Renvoie le numéro de série de la date du dernier jour du mois précédant ou suivant la date_départ du nombre de mois indiqué.
A64: DATE | B64: FRACTION.ANNEE | C64: YEARFRAC | D64: Renvoie la fraction de l'année représentant le nombre de jours entre la date de début et la date de fin.
A65: DATE | B65: HEURE | C65: HOUR | D65: Convertit un numéro de série en heure.
A66: DATE | B66: JOUR | C66: DAY | D66: Convertit un numéro de série en jour du mois.
A67: DATE | B67: JOURS | C67: DAYS | D67: Renvoie le nombre de jours entre deux dates (2013).
A68: DATE | B68: JOURS360 | C68: DAYS360 | D68: Calcule le nombre de jours qui séparent deux dates sur la base d'une année de 360 jours.
A69: DATE | B69: JOURSEM | C69: WEEKDAY | D69: Convertit un numéro de série en jour de la semaine.
A70: DATE | B70: MAINTENANT | C70: NOW | D70: Renvoie le numéro de série de la date et de l'heure du jour.
A71: DATE | B71: MINUTE | C71: MINUTE | D71: Convertit un numéro de série en minute.
A72: DATE | B72: MOIS | C72: MONTH | D72: Convertit un numéro de série en mois.
A73: DATE | B73: MOIS.DECALER | C73: EDATE | D73: Renvoie le numéro de série de la date qui représente une date spécifiée (l'argument date_départ), corrigée en plus ou en moins du nombre de mois indiqué.
A74: DATE | B74: NB.JOURS.OUVRES | C74: NETWORKDAYS | D74: Renvoie le nombre de jours ouvrés entiers compris entre deux dates.
A75: DATE | B75: NB.JOURS.OUVRES.INTL | C75: NETWORKDAYS.INTL | D75: Renvoie le nombre de jours ouvrés entiers compris entre deux dates à l'aide de paramètres identifiant les jours du week-end et leur nombre.
A76: DATE | B76: NO.SEMAINE | C76: WEEKNUM | D76: Convertit un numéro de série en un numéro représentant l'ordre de la semaine dans l'année.
A77: DATE | B77: NO.SEMAINE.ISO | C77: ISOWEEKNUM | D77: Renvoie le numéro de la semaine ISO de l'année pour une date donnée (2013).
A78: DATE | B78: SECONDE | C78: SECOND | D78: Convertit un numéro de série en seconde.
A79: DATE | B79: SERIE.JOUR.OUVRE | C79: WORKDAY | D79: Renvoie le numéro de série de la date avant ou après le nombre de jours ouvrés spécifiés.
A80: DATE | B80: SERIE.JOUR.OUVRE.INTL | C80: WORKDAY.INTL | D80: Renvoie le numéro de série de la date avant ou après un nombre spécifié de jours ouvrés en spécifiant des paramètres qui identifient et dénombrent les jours inclus dans le week-end.
A81: DATE | B81: TEMPS | C81: TIME | D81: Renvoie le numéro de série d'une heure précise.
A82: DATE | B82: TEMPSVAL | C82: TIMEVALUE | D82: Convertit une date représentée sous forme de texte en numéro de série.
A83: MATHS | B83: ABS | C83: ABS | D83: Renvoie la valeur absolue d'un nombre.
A84: MATHS | B84: ACOS | C84: ACOS | D84: Renvoie l'arccosinus d'un nombre.
A85: MATHS | B85: ACOSH | C85: ACOSH | D85: Renvoie le cosinus hyperbolique inverse d'un nombre.
A86: MATHS | B86: ACOT | C86: ACOT | D86: Renvoie l'arccotangente d'un nombre (2013).
A87: MATHS | B87: ACOTH | C87: ACOTH | D87: Renvoie l'arccotangente hyperbolique d'un nombre (2013).
A88: MATHS | B88: AGREGAT | C88: AGGREGATE | D88: Renvoie un sous-total dans une liste ou une base de données.
A89: MATHS | B89: ALEA | C89: RAND | D89: Renvoie un nombre aléatoire compris entre 0 et 1.
A90: MATHS | B90: ALEA.ENTRE.BORNES | C90: RANDBETWEEN | D90: Renvoie un nombre aléatoire entre les nombres que vous spécifiez.
A91: MATHS | B91: ARABE | C91: ARABIC | D91: Convertit un nombre romain en nombre arabe (2013).
A92: MATHS | B92: ARRONDI | C92: ROUND | D92: Arrondit un nombre au nombre de chiffres indiqué.
A93: MATHS | B93: ARRONDI.AU.MULTIPLE | C93: MROUND | D93: Donne l'arrondi d'un nombre au multiple spécifié.
A94: MATHS | B94: ARRONDI.INF | C94: ROUNDDOWN | D94: Arrondit un nombre en tendant vers 0 (zéro).
A95: MATHS | B95: ARRONDI.SUP | C95: ROUNDUP | D95: Arrondit un nombre à l'entier supérieur, en s'éloignant de zéro.
A96: MATHS | B96: ASIN | C96: ASIN | D96: Renvoie l'arcsinus d'un nombre.
A97: MATHS | B97: ASINH | C97: ASINH | D97: Renvoie le sinus hyperbolique inverse d'un nombre.
A98: MATHS | B98: ATAN | C98: ATAN | D98: Renvoie l'arctangente d'un nombre.
A99: MATHS | B99: ATAN2 | C99: ATAN2 | D99: Renvoie l'arctangente des coordonnées x et y.
A100: MATHS | B100: ATANH | C100: ATANH | D100: Renvoie la tangente hyperbolique inverse d'un nombre.
A101: MATHS | B101: BASE | C101: BASE | D101: Convertit un nombre en une représentation textuelle avec la base donnée (2013).
A102: MATHS | B102: COMBIN | C102: COMBIN | D102: Renvoie le nombre de combinaisons que l'on peut former avec un nombre donné d'objets.
A103: MATHS | B103: COMBINA | C103: COMBINA | D103: Renvoie le nombre de combinaisons avec répétitions pour un nombre d'éléments donné (2013).
A104: MATHS | B104: COS | C104: COS | D104: Renvoie le cosinus d'un nombre.
A105: MATHS | B105: COSH | C105: COSH | D105: Renvoie le cosinus hyperbolique d'un nombre.
A106: MATHS | B106: COT | C106: COT | D106: Renvoie le cosinus hyperbolique d'un nombre (2013).
A107: MATHS | B107: COTH | C107: COTH | D107: Renvoie la cotangente d'un angle (2013).
A108: MATHS | B108: CSC | C108: CSC | D108: Renvoie la cosécante d'un angle (2013).
A109: MATHS | B109: CSCH | C109: CSCH | D109: Renvoie la cosécante hyperbolique d'un angle (2013).
A110: MATHS | B110: DECIMAL | C110: DECIMAL | D110: Convertit une représentation textuelle d'un nombre dans une base donnée en nombre décimal (2013).
A111: MATHS | B111: DEGRES | C111: DEGREES | D111: Convertit des radians en degrés.
A112: MATHS | B112: DETERMAT | C112: MDETERM | D112: Renvoie le déterminant d'une matrice.
A113: MATHS | B113: ENT | C113: INT | D113: Arrondit un nombre à l'entier immédiatement inférieur.
A114: MATHS | B114: EXP | C114: EXP | D114: Renvoie e élevé à la puissance d'un nombre donné.
A115: MATHS | B115: FACT | C115: FACT | D115: Renvoie la factorielle d'un nombre.
A116: MATHS | B116: FACTDOUBLE | C116: FACTDOUBLE | D116: Renvoie la factorielle double d'un nombre.
A117: MATHS | B117: IMPAIR | C117: ODD | D117: Renvoie le nombre, arrondi à la valeur du nombre entier impair le plus proche en s'éloignant de zéro.
A118: MATHS | B118: INVERSEMAT | C118: MINVERSE | D118: Renvoie la matrice inverse d'une matrice.
A119: MATHS | B119: LN | C119: LN | D119: Renvoie le logarithme népérien d'un nombre.
A120: MATHS | B120: LOG | C120: LOG | D120: Renvoie le logarithme d'un nombre dans la base spécifiée.
A121: MATHS | B121: LOG10 | C121: LOG10 | D121: Calcule le logarithme en base 10 d'un nombre.
A122: MATHS | B122: MATRICE.UNITAIRE | C122: MUNIT | D122: Renvoie la matrice unitaire ou la dimension spécifiée (2013).
A123: MATHS | B123: MOD | C123: MOD | D123: Renvoie le reste d'une division.
A124: MATHS | B124: MULTINOMIALE | C124: MULTINOMIAL | D124: Calcule la multinomiale d'un ensemble de nombres.
A125: MATHS | B125: PAIR | C125: EVEN | D125: Arrondit un nombre au nombre entier pair le plus proche en s'éloignant de zéro.
A126: MATHS | B126: PGCD | C126: GCD | D126: Renvoie le plus grand commun diviseur.
A127: MATHS | B127: PI | C127: PI | D127: Renvoie la valeur de pi.
A128: MATHS | B128: PLAFOND | C128: CEILING | D128: Arrondit un nombre au nombre entier le plus proche ou au multiple le plus proche de l'argument précision en s'éloignant de zéro.
A129: MATHS | B129: PLAFOND.MATH | C129: CEILING.MATH | D129: Arrondit un nombre au nombre entier supérieur le plus proche ou au multiple le plus proche de l'argument précision en s'éloignant de zéro (2013).
A130: MATHS | B130: PLAFOND.PRECIS | C130: CEILING.PRECISE | D130: Arrondit un nombre au nombre entier le plus proche ou au multiple le plus proche de l'argument précision en s'éloignant de zéro. Quel que soit son signe, ce nombre est arrondi à l'entier supérieur.
A131: MATHS | B131: PLANCHER | C131: FLOOR | D131: Arrondit un nombre en tendant vers 0 (zéro).
A132: MATHS | B132: PLANCHER.MATH | C132: FLOOR.MATH | D132: Arrondit un nombre au nombre entier inférieur le plus proche ou au multiple le plus proche de l'argument précision en tendant vers zéro (2013).
A133: MATHS | B133: PLANCHER.PRECIS | C133: FLOOR.PRECISE | D133: Arrondit un nombre au nombre entier le plus proche ou au multiple le plus proche de l'argument précision en s'éloignant de zéro. Quel que soit son signe, ce nombre est arrondi à l'entier supérieur.
A134: MATHS | B134: PPCM | C134: LCM | D134: Renvoie le plus petit commun multiple.
A135: MATHS | B135: PRODUIT | C135: PRODUCT | D135: Multiplie ses arguments.
A136: MATHS | B136: PRODUITMAT | C136: MMULT | D136: Renvoie le produit de deux matrices.
A137: MATHS | B137: PUISSANCE | C137: POWER | D137: Renvoie la valeur du nombre élevé à une puissance.
A138: MATHS | B138: QUOTIENT | C138: QUOTIENT | D138: Renvoie la partie entière du résultat d'une division.
A139: MATHS | B139: RACINE | C139: SQRT | D139: Renvoie la racine carrée d'un nombre.
A140: MATHS | B140: RACINE.PI | C140: SQRTPI | D140: Renvoie la racine carrée de (nombre * pi).
A141: MATHS | B141: RADIANS | C141: RADIANS | D141: Convertit des degrés en radians.
A142: MATHS | B142: ROMAIN | C142: ROMAN | D142: Convertit des chiffres arabes en chiffres romains, sous forme de texte.
A143: MATHS | B143: SEC | C143: SEC | D143: Renvoie la sécante d'un angle (2013).
A144: MATHS | B144: SECH | C144: SECH | D144: Renvoie la sécante hyperbolique d'un angle (2013).
A145: MATHS | B145: SIGNE | C145: SIGN | D145: Renvoie le signe d'un nombre.
A146: MATHS | B146: SIN | C146: SIN | D146: Renvoie le sinus d'un angle donné.
A147: MATHS | B147: SINH | C147: SINH | D147: Renvoie le sinus hyperbolique d'un nombre.
A148: MATHS | B148: SOMME | C148: SUM | D148: Calcule la somme de ses arguments.
A149: MATHS | B149: SOMME.CARRES | C149: SUMSQ | D149: Renvoie la somme des carrés des arguments.
A150: MATHS | B150: SOMME.SERIES | C150: SERIESSUM | D150: Renvoie la somme d'une série géométrique en s'appuyant sur une formule.
A151: MATHS | B151: SOMME.SI | C151: SUMIF | D151: Additionne les cellules spécifiées si elles répondent à un critère donné.
A152: MATHS | B152: SOMME.SI.ENS | C152: SUMIFS | D152: Ajoute les cellules d'une plage qui répondent à plusieurs critères.
A153: MATHS | B153: SOMME.X2MY2 | C153: SUMX2MY2 | D153: Renvoie la somme de la différence des carrés des valeurs correspondantes de deux matrices.
A154: MATHS | B154: SOMME.X2PY2 | C154: SUMX2PY2 | D154: Renvoie la somme de la somme des carrés des valeurs correspondantes de deux matrices.
A155: MATHS | B155: SOMME.XMY2 | C155: SUMXMY2 | D155: Renvoie la somme des carrés des différences entre les valeurs correspondantes de deux matrices.
A156: MATHS | B156: SOMMEPROD | C156: SUMPRODUCT | D156: Multiplie les valeurs correspondantes des matrices spécifiées et calcule la somme de ces produits.
A157: MATHS | B157: SOUS.TOTAL | C157: SUBTOTAL | D157: Renvoie un sous-total dans une liste ou une base de données.
A158: MATHS | B158: TAN | C158: TAN | D158: Renvoie la tangente d'un nombre.
A159: MATHS | B159: TANH | C159: TANH | D159: Renvoie la tangente hyperbolique d'un nombre.
A160: MATHS | B160: TRONQUE | C160: TRUNC | D160: Renvoie la partie entière d'un nombre.
A161: STATS | B161: AVERAGEA | C161: AVERAGEA | D161: Renvoie la moyenne de ses arguments, nombres, texte et valeurs logiques inclus.
A162: STATS | B162: BETA.INVERSE.N | C162: BETA.INV | D162: Renvoie l'inverse de la fonction de distribution cumulée pour une distribution bêta spécifiée.
A163: STATS | B163: CENTILE.EXCLURE | C163: PERCENTILE.EXC | D163: Renvoie le k-ième centile des valeurs d'une plage, où k se trouve dans la plage comprise entre 0 et 1, exclues.
A164: STATS | B164: CENTILE.INCLURE | C164: PERCENTILE.INC | D164: Renvoie le k-ième centile des valeurs d'une plage.
A165: STATS | B165: CENTREE.REDUITE | C165: STANDARDIZE | D165: Renvoie une valeur centrée réduite.
A166: STATS | B166: CHISQ.TEST | C166: CHISQ.TEST | D166: Renvoie le test d'indépendance.
A167: STATS | B167: COEFFICIENT.ASYMETRIE | C167: SKEW | D167: Renvoie l'asymétrie d'une distribution.
A168: STATS | B168: COEFFICIENT.ASYMETRIE.P | C168: SKEW.P | D168: Renvoie l'asymétrie d'une distribution : la caractérisation du degré d'asymétrie d'une distribution par rapport à sa moyenne (2013).
A169: STATS | B169: COEFFICIENT.CORRELATION | C169: CORREL | D169: Renvoie le coefficient de corrélation entre deux séries de données.
A170: STATS | B170: COEFFICIENT.DETERMINATION | C170: RSQ | D170: Renvoie la valeur du coefficient de détermination R^2 d'une régression linéaire.
A171: STATS | B171: COVARIANCE.PEARSON | C171: COVARIANCE.P | D171: Renvoie la covariance, moyenne des produits des écarts pour chaque série d'observations.
A172: STATS | B172: COVARIANCE.STANDARD | C172: COVARIANCE.S | D172: Renvoie la covariance d'échantillon, moyenne des produits des écarts pour chaque paire de points de deux jeux de données.
A173: STATS | B173: CROISSANCE | C173: GROWTH | D173: Calcule des valeurs par rapport à une tendance exponentielle.
A174: STATS | B174: DROITEREG | C174: LINEST | D174: Renvoie les paramètres d'une tendance linéaire.
A175: STATS | B175: ECART.MOYEN | C175: AVEDEV | D175: Renvoie la moyenne des écarts absolus observés dans la moyenne des points de données.
A176: STATS | B176: ECARTYPE.PEARSON | C176: STDEV.P | D176: Calcule l'écart type d'une population à partir de la population entière.
A177: STATS | B177: ECARTYPE.STANDARD | C177: STDEV.S | D177: Evalue l'écart type d'une population en se basant sur un échantillon de cette population.
A178: STATS | B178: EQUATION.RANG | C178: RANK.EQ | D178: Renvoie le rang d'un nombre contenu dans une liste.
A179: STATS | B179: ERREUR.TYPE.XY | C179: STEYX | D179: Renvoie l'erreur type de la valeur y prévue pour chaque x de la régression.
A180: STATS | B180: F.TEST | C180: F.TEST | D180: Renvoie le résultat d'un test F.
A181: STATS | B181: FISHER | C181: FISHER | D181: Renvoie la transformation de Fisher.
A182: STATS | B182: FISHER.INVERSE | C182: FISHERINV | D182: Renvoie l'inverse de la transformation de Fisher.
A183: STATS | B183: FREQUENCE | C183: FREQUENCY | D183: Calcule la fréquence d'apparition des valeurs dans une plage de valeurs, puis renvoie des nombres sous forme de matrice verticale.
A184: STATS | B184: GAMMA | C184: GAMMA | D184: Renvoie la valeur de fonction Gamma (2013).
A185: STATS | B185: GAUSS | C185: GAUSS | D185: Renvoie 0.5 de moins que la distribution cumulée normale standard (2013).
A186: STATS | B186: GRANDE.VALEUR | C186: LARGE | D186: Renvoie la k-ième plus grande valeur d'une série de données.
A187: STATS | B187: INTERVALLE.CONFIANCE.NORMAL | C187: CONFIDENCE.NORM | D187: Renvoie l'intervalle de confiance pour une moyenne de population.
A188: STATS | B188: INTERVALLE.CONFIANCE.STUDENT | C188: CONFIDENCE.T | D188: Renvoie l'intervalle de confiance pour la moyenne d'une population, à l'aide d'une distribution t de Student.
A189: STATS | B189: INVERSE.LOI.F | C189: FINV | D189: Renvoie l'inverse de la distribution de probabilité F.
A190: STATS | B190: INVERSE.LOI.F.DROITE | C190: F.INV.RT | D190: Renvoie l'inverse de la distribution de probabilité F.
A191: STATS | B191: INVERSE.LOI.F.N | C191: F.INV | D191: Renvoie l'inverse de la distribution de probabilité F.
A192: STATS | B192: KURTOSIS | C192: KURT | D192: Renvoie le kurtosis d'une série de données.
A193: STATS | B193: LNGAMMA | C193: GAMMALN | D193: Renvoie le logarithme népérien de la fonction Gamma, G(x)
A194: STATS | B194: LNGAMMA.PRECIS | C194: GAMMALN.PRECISE | D194: Renvoie le logarithme népérien de la fonction Gamma, G(x).
A195: STATS | B195: LOGREG | C195: LOGEST | D195: Renvoie les paramètres d'une tendance exponentielle.
A196: STATS | B196: LOI.BETA.N | C196: BETA.DIST | D196: Renvoie la fonction de distribution cumulée.
A197: STATS | B197: LOI.BINOMIALE.INVERSE | C197: BINOM.INV | D197: Renvoie la plus petite valeur pour laquelle la distribution binomiale cumulée est inférieure ou égale à une valeur de critère.
A198: STATS | B198: LOI.BINOMIALE.N | C198: BINOM.DIST | D198: Renvoie la probabilité d'une variable aléatoire discrète suivant la loi binomiale.
A199: STATS | B199: LOI.BINOMIALE.NEG.N | C199: NEGBINOM.DIST | D199: Renvoie la probabilité d'une variable aléatoire discrète suivant une loi binomiale négative.
A200: STATS | B200: LOI.BINOMIALE.SERIE | C200: BINOM.DIST.RANGE | D200: Renvoie la probabilité d'un résultat d'essai à l'aide d'une distribution binomiale (2013).
A201: STATS | B201: LOI.EXPONENTIELLE.N | C201: EXPON.DIST | D201: Renvoie la distribution exponentielle.
... 253 more rows

Sheet Raccourcis
A1: RACCOURCIS EXCEL
D2: Les touches de raccourci par ordre alphabétique des fonctions
A3: F1 | B3: Affichage de l'aide en ligne ou du Compagnon Office | D3: Activation de la barre de menus | E3: F10
A4: F2 | B4: Modification de la cellule active | D4: Affichage de la boîte de dialogue MACRO | E4: ALT+F8
A5: F3 | B5: Collage d'un nom dans une formule | D5: Affichage de la boîte de dialogue Rechercher | E5: MAJ+F5
A6: F4 | B6: Répétition de la dernière action | D6: Affichage de l'aide en ligne ou du Compagnon Office | E6: F1
A7: F5 | B7: Atteindre | D7: Affichage de Visual Basic Editor | E7: ALT+F11
A8: F6 | B8: Déplacement vers le volet suivant | D8: Affichage d'un menu contextuel | E8: MAJ+F10
A9: F7 | B9: Commande Orthographe | D9: Agrandissement ou restauration de la fenêtre du classeur | E9: CTRL+F10
A10: F8 | B10: Extension d'une sélection | D10: Ajout à la sélection | E10: MAJ+F8
A11: F9 | B11: Calcul de l'ensemble des feuilles de tous les classeurs ouverts | D11: Annuler la dernière action | E11: CTRL+Z
A12: F10 | B12: Activation de la barre de menus | D12: Atteindre | E12: F5
A13: F11 | B13: Création d'un graphique | D13: Atteindre la première colonne d'un tableau (ou de la feuille) | E13: CTRL+<-
A14: F12 | B14: Commande Enregistrer sous | D14: Atteindre la dernière colonne d'un tableau (ou de la feuille) | E14: CTRL+->
A15: MAJ+F1 | B15: Qu'est-ce que c'est ? | D15: Atteindre la première ligne d'un tableau (ou de la feuille) | E15: CTRL+î
A16: MAJ+F2 | B16: Modification d'un commentaire de cellule | D16: Atteindre la première ligne d'un tableau (ou de la feuille) | E16: CTRL+i
A17: MAJ+F3 | B17: Collage d'une fonction dans une formule | D17: Atteindre la cellule A1 | E17: CTRL+home
A18: MAJ+F4 | B18: Répétition de la dernière commande Rechercher (Suivant) | D18: Calcul de la feuille active | E18: MAJ+F9
A19: MAJ+F5 | B19: Affichage de la boîte de dialogue Rechercher | D19: Calcul de l'ensemble des feuilles de tous les classeurs ouverts | E19: F9
A20: MAJ+F6 | B20: Déplacement vers le volet précédent | D20: Collage d'un nom dans une formule | E20: F3
A21: MAJ+F8 | B21: Ajout à la sélection | D21: Collage d'une fonction dans une formule | E21: MAJ+F3
A22: MAJ+F9 | B22: Calcul de la feuille active | D22: Coller | E22: CTRL+V
A23: MAJ+F10 | B23: Affichage d'un menu contextuel | D23: Commande Enregistrer | E23: CTRL+S
A24: MAJ+F11 | B24: Insertion d'une nouvelle feuille de calcul | D24: Commande Enregistrer | E24: MAJ+F12
A25: MAJ+F12 | B25: Commande Enregistrer | D25: Commande Enregistrer | E25: ALT+MAJ+F2
A26: CTRL+F3 | B26: Définition d'un nom | D26: Commande Enregistrer sous | E26: F12
A27: CTRL+F4 | B27: Fermeture de la fenêtre | D27: Commande Enregistrer sous | E27: ALT+F2
A28: CTRL+F5 | B28: Restauration de la taille de la fenêtre | D28: Commande Imprimer | E28: CTRL+MAJ+F12
A29: CTRL+F6 | B29: Déplacement vers la fenêtre suivante du classeur | D29: Commande Orthographe | E29: F7
A30: CTRL+F7 | B30: Déplacement de la fenêtre | D30: Commande Ouvrir | E30: CTRL+F12
A31: CTRL+F8 | B31: Redimensionnement de la fenêtre | D31: Copier | E31: CTRL+C
A32: CTRL+F9 | B32: Réduction du classeur | D32: Couper | E32: CTRL+X
A33: CTRL+F10 | B33: Agrandissement ou restauration de la fenêtre du classeur | D33: Création de noms à partir des étiquettes de ligne et de colonne | E33: CTRL+MAJ+F3
A34: CTRL+F11 | B34: Insertion d'une feuille macro Microsoft Excel 4.0 | D34: Création d'un graphique | E34: F11
A35: CTRL+F12 | B35: Commande Ouvrir | D35: Définition d'un nom | E35: CTRL+F3
A36: CTRL+' | B36: Efface toutes les bordures de la plage sélectionnée | D36: Déplacement de la fenêtre | E36: CTRL+F7
A37: CTRL+TAB | B37: Passer d'un classeur ouvert à un autre | D37: Déplacement vers la fenêtre précédente du classeur | E37: CTRL+MAJ+F6
A38: CTRL+PGAR | B38: Passer rapidement à la feuille précédente du classeur | D38: Déplacement vers la fenêtre suivante du classeur | E38: CTRL+F6
A39: CTRL+PGAV | B39: Passer rapidement à la feuille suivante du classeur | D39: Déplacement vers le volet précédent | E39: MAJ+F6
A40: CTRL+<- | B40: Atteindre la première colonne d'un tableau (ou de la feuille) | D40: Déplacement vers le volet suivant | E40: F6
A41: CTRL+-> | B41: Atteindre la dernière colonne d'un tableau (ou de la feuille) | D41: Effacer les bordures d'une palge sélectionnée | E41: CTRL+'
A42: CTRL+î | B42: Atteindre la dernière ligne d'un tableau (ou de la feuille) | D42: Extension d'une sélection | E42: F8
A43: CTRL+i | B43: Atteindre la dernière ligne d'un tableau (ou de la feuille) | D43: Fermeture de la fenêtre | E43: CTRL+F4
A44: CTRL+home | B44: Atteindre la cellule A1 | D44: Imprimer | E44: CTRL+P
A45: CTRL+C | B45: Copier | D45: Insertion d'une feuille graphique | E45: ALT+F1
A46: CTRL+F | B46: Rechercher | D46: Insertion d'une feuille macro Microsoft Excel 4.0 | E46: CTRL+F11
A47: CTRL+H | B47: Remplacer | D47: Insertion d'une nouvelle feuille de calcul | E47: MAJ+F11
A48: CTRL+K | B48: Lien hypertexte | D48: Insertion d'une nouvelle feuille de calcul | E48: ALT+MAJ+F1
A49: CTRL+N | B49: Nouveau classeur | D49: Modification de la cellule active | E49: F2
A50: CTRL+O | B50: Ouvrir un fichier | D50: Modification d'un commentaire de cellule | E50: MAJ+F2
A51: CTRL+P | B51: Imprimer | D51: Nouveau classeur | E51: CTRL+N
A52: CTRL+S | B52: Enregristrer | D52: Ouvrir | E52: CTRL+O
A53: CTRL+T | B53: Atteindre | D53: Passer à un autre classeur ouvert | E53: CTRL+TAB
A54: CTRL+V | B54: Coller | D54: Passer à la feuille précédente du classeur | E54: CTRL+PGAR
A55: CTRL+X | B55: Couper | D55: Passer à la feuille précédente du classeur | E55: CTRL+PGAV
A56: CTRL+Y | B56: Rétablir l'action précédemment annulée | D56: Qu'est-ce que c'est ? | E56: MAJ+F1
A57: CTRL+Z | B57: Annuler la dernière action | D57: Quitter | E57: ALT+F4
A58: ALT+F1 | B58: Insertion d'une feuille graphique | D58: Rechercher | E58: CTRL+F
A59: ALT+F2 | B59: Commande Enregistrer sous | D59: Redimensionnement de la fenêtre | E59: CTRL+F8
A60: ALT+F4 | B60: Quitter | D60: Réduction du classeur | E60: CTRL+F9
A61: ALT+F8 | B61: Affichage de la boîte de dialogue MACRO | D61: Remplacer | E61: CTRL+H
A62: ALT+F11 | B62: Affichage de Visual Basic Editor | D62: Répétition de la dernière action | E62: F4
A63: ALT+MAJ+F1 | B63: Insertion d'une nouvelle feuille de calcul | D63: Répétition de la dernière commande Rechercher (Suivant) | E63: MAJ+F4
A64: ALT+MAJ+F2 | B64: Commande Enregistrer | D64: Restauration de la taille de la fenêtre | E64: CTRL+F5
D65: Rétablir l'action annulée | E65: CTRL+Y
